{"text_format":"1","workbook":"xlsx","n_sheets":4,"sheets":["説明","デッキビルダー","印刷用シート","カードリスト"],"not_rendered":{"charts":0,"images":1,"macros":1,"external_links":0,"defined_names":2,"comments":0,"pivot_tables":0},"unopened":[],"bounds":{"document_bytes":16777216,"sheet_cells":100000,"rows_first":2000,"rows_last":500,"rows_between":2000,"halvings":0,"cell_chars":16384,"cell_head_chars":4096},"cells_cut":0,"cells_raw":0,"read":"whole","date_system":"1900"}

{"sheet":"説明","index":0,"n_rows":4,"n_cols":2,"rows_kept":4,"cut":false,"hidden":false,"merged":[]}
[]
[null,"レギオンズ！公式デッキビルダーエクセルシートver2.2"]
[null,"（Ｃ）FLIPFLOPs\nhttp://legions.flipflops.jp/"]
[null,"使い方\n\nこのエクセルファイルを利用して、「レギオンズ！」のデッキを構築する事が出来ます。\n印刷して、そのまま、公式大会のデッキ登録にご利用頂けます。\nまず、デッキビルダーシートを利用して、デッキを組みます。\nカード名と入れる枚数をプルダウンで選んで、デッキを組んでください。\n\n印刷する時は、印刷用シートに切り替え、そこにデッキビルダーで作ったカードリストを読み込んで印刷してください。（印刷用シート右上の読み込みボタンを押します。マクロが有効になっている必要があります）"]

{"sheet":"デッキビルダー","index":1,"n_rows":45,"n_cols":12,"rows_kept":45,"cut":false,"hidden":false,"merged":[]}
[null,"レギオンズ！公式デッキビルダー"]
[null,"使用マスター"]
[]
[]
[null,"カード名","枚数","色","カテゴリー","コスト",null,"合計枚数",{"$f":"SUM(I7:I10)","v":0}]
[1,null,null,{"$f":"IF($B6=\"\",\"\",VLOOKUP($B6,カードリスト!$A$10:$P$994,3,FALSE))","v":""},{"$f":"IF($B6=\"\",\"\",VLOOKUP($B6,カードリスト!$A$10:$P$994,4,FALSE))","v":""},{"$f":"IF($B6=\"\",\"\",VLOOKUP($B6,カードリスト!$A$10:$P$994,5,FALSE))","v":""}]
[2,null,null,{"$f":"IF($B7=\"\",\"\",VLOOKUP($B7,カードリスト!$A$10:$P$994,3,FALSE))","v":""},{"$f":"IF($B7=\"\",\"\",VLOOKUP($B7,カードリスト!$A$10:$P$994,4,FALSE))","v":""},{"$f":"IF($B7=\"\",\"\",VLOOKUP($B7,カードリスト!$A$10:$P$994,5,FALSE))","v":""},null,"ミニオン",{"$f":"SUMIF($E$6:$E$45,$H7,$C$6:$C$45)","v":0}]
[3,null,null,{"$f":"IF($B8=\"\",\"\",VLOOKUP($B8,カードリスト!$A$10:$P$994,3,FALSE))","v":""},{"$f":"IF($B8=\"\",\"\",VLOOKUP($B8,カードリスト!$A$10:$P$994,4,FALSE))","v":""},{"$f":"IF($B8=\"\",\"\",VLOOKUP($B8,カードリスト!$A$10:$P$994,5,FALSE))","v":""},null,"スキル",{"$f":"SUMIF($E$6:$E$45,$H8,$C$6:$C$45)","v":0}]
[4,null,null,{"$f":"IF($B9=\"\",\"\",VLOOKUP($B9,カードリスト!$A$10:$P$994,3,FALSE))","v":""},{"$f":"IF($B9=\"\",\"\",VLOOKUP($B9,カードリスト!$A$10:$P$994,4,FALSE))","v":""},{"$f":"IF($B9=\"\",\"\",VLOOKUP($B9,カードリスト!$A$10:$P$994,5,FALSE))","v":""},null,"ロード",{"$f":"SUMIF($E$6:$E$45,$H9,$C$6:$C$45)","v":0}]
[5,null,null,{"$f":"IF($B10=\"\",\"\",VLOOKUP($B10,カードリスト!$A$10:$P$994,3,FALSE))","v":""},{"$f":"IF($B10=\"\",\"\",VLOOKUP($B10,カードリスト!$A$10:$P$994,4,FALSE))","v":""},{"$f":"IF($B10=\"\",\"\",VLOOKUP($B10,カードリスト!$A$10:$P$994,5,FALSE))","v":""},null,"アーツ",{"$f":"SUMIF($E$6:$E$45,$H10,$C$6:$C$45)","v":0}]
[6,null,null,{"$f":"IF($B11=\"\",\"\",VLOOKUP($B11,カードリスト!$A$10:$P$994,3,FALSE))","v":""},{"$f":"IF($B11=\"\",\"\",VLOOKUP($B11,カードリスト!$A$10:$P$994,4,FALSE))","v":""},{"$f":"IF($B11=\"\",\"\",VLOOKUP($B11,カードリスト!$A$10:$P$994,5,FALSE))","v":""}]
[7,null,null,{"$f":"IF($B12=\"\",\"\",VLOOKUP($B12,カードリスト!$A$10:$P$994,3,FALSE))","v":""},{"$f":"IF($B12=\"\",\"\",VLOOKUP($B12,カードリスト!$A$10:$P$994,4,FALSE))","v":""},{"$f":"IF($B12=\"\",\"\",VLOOKUP($B12,カードリスト!$A$10:$P$994,5,FALSE))","v":""}]
[8,null,null,{"$f":"IF($B13=\"\",\"\",VLOOKUP($B13,カードリスト!$A$10:$P$994,3,FALSE))","v":""},{"$f":"IF($B13=\"\",\"\",VLOOKUP($B13,カードリスト!$A$10:$P$994,4,FALSE))","v":""},{"$f":"IF($B13=\"\",\"\",VLOOKUP($B13,カードリスト!$A$10:$P$994,5,FALSE))","v":""},null,"コスト",null,null,"ミニオン・スキルのみ"]
[9,null,null,{"$f":"IF($B14=\"\",\"\",VLOOKUP($B14,カードリスト!$A$10:$P$994,3,FALSE))","v":""},{"$f":"IF($B14=\"\",\"\",VLOOKUP($B14,カードリスト!$A$10:$P$994,4,FALSE))","v":""},{"$f":"IF($B14=\"\",\"\",VLOOKUP($B14,カードリスト!$A$10:$P$994,5,FALSE))","v":""},null,1,{"$f":"SUMIF($F$6:$F$45,$H14,$C$6:$C$45)","v":0},null,1,{"$f":"SUMIFS($C$6:$C$45,$F$6:$F$45,$H14,$E$6:$E$45,\"スキル\")+SUMIFS($C$6:$C$45,$F$6:$F$45,$H14,$E$6:$E$45,\"ミニオン\")","v":0}]
[10,null,null,{"$f":"IF($B15=\"\",\"\",VLOOKUP($B15,カードリスト!$A$10:$P$994,3,FALSE))","v":""},{"$f":"IF($B15=\"\",\"\",VLOOKUP($B15,カードリスト!$A$10:$P$994,4,FALSE))","v":""},{"$f":"IF($B15=\"\",\"\",VLOOKUP($B15,カードリスト!$A$10:$P$994,5,FALSE))","v":""},null,2,0,null,2,{"$f":"SUMIFS($C$6:$C$45,$F$6:$F$45,$H15,$E$6:$E$45,\"スキル\")+SUMIFS($C$6:$C$45,$F$6:$F$45,$H15,$E$6:$E$45,\"ミニオン\")","v":0}]
[11,null,null,{"$f":"IF($B16=\"\",\"\",VLOOKUP($B16,カードリスト!$A$10:$P$994,3,FALSE))","v":""},{"$f":"IF($B16=\"\",\"\",VLOOKUP($B16,カードリスト!$A$10:$P$994,4,FALSE))","v":""},{"$f":"IF($B16=\"\",\"\",VLOOKUP($B16,カードリスト!$A$10:$P$994,5,FALSE))","v":""},null,3,0,null,3,0]
[12,null,null,{"$f":"IF($B17=\"\",\"\",VLOOKUP($B17,カードリスト!$A$10:$P$994,3,FALSE))","v":""},{"$f":"IF($B17=\"\",\"\",VLOOKUP($B17,カードリスト!$A$10:$P$994,4,FALSE))","v":""},{"$f":"IF($B17=\"\",\"\",VLOOKUP($B17,カードリスト!$A$10:$P$994,5,FALSE))","v":""},null,4,0,null,4,0]
[13,null,null,{"$f":"IF($B18=\"\",\"\",VLOOKUP($B18,カードリスト!$A$10:$P$994,3,FALSE))","v":""},{"$f":"IF($B18=\"\",\"\",VLOOKUP($B18,カードリスト!$A$10:$P$994,4,FALSE))","v":""},{"$f":"IF($B18=\"\",\"\",VLOOKUP($B18,カードリスト!$A$10:$P$994,5,FALSE))","v":""},null,5,0,null,5,0]
[14,null,null,{"$f":"IF($B19=\"\",\"\",VLOOKUP($B19,カードリスト!$A$10:$P$994,3,FALSE))","v":""},{"$f":"IF($B19=\"\",\"\",VLOOKUP($B19,カードリスト!$A$10:$P$994,4,FALSE))","v":""},{"$f":"IF($B19=\"\",\"\",VLOOKUP($B19,カードリスト!$A$10:$P$994,5,FALSE))","v":""},null,6,0,null,6,0]
[15,null,null,{"$f":"IF($B20=\"\",\"\",VLOOKUP($B20,カードリスト!$A$10:$P$994,3,FALSE))","v":""},{"$f":"IF($B20=\"\",\"\",VLOOKUP($B20,カードリスト!$A$10:$P$994,4,FALSE))","v":""},{"$f":"IF($B20=\"\",\"\",VLOOKUP($B20,カードリスト!$A$10:$P$994,5,FALSE))","v":""},null,7,0,null,7,0]
[16,null,null,{"$f":"IF($B21=\"\",\"\",VLOOKUP($B21,カードリスト!$A$10:$P$994,3,FALSE))","v":""},{"$f":"IF($B21=\"\",\"\",VLOOKUP($B21,カードリスト!$A$10:$P$994,4,FALSE))","v":""},{"$f":"IF($B21=\"\",\"\",VLOOKUP($B21,カードリスト!$A$10:$P$994,5,FALSE))","v":""},null,8,0,null,8,0]
[17,null,null,{"$f":"IF($B22=\"\",\"\",VLOOKUP($B22,カードリスト!$A$10:$P$994,3,FALSE))","v":""},{"$f":"IF($B22=\"\",\"\",VLOOKUP($B22,カードリスト!$A$10:$P$994,4,FALSE))","v":""},{"$f":"IF($B22=\"\",\"\",VLOOKUP($B22,カードリスト!$A$10:$P$994,5,FALSE))","v":""}]
[18,null,null,{"$f":"IF($B23=\"\",\"\",VLOOKUP($B23,カードリスト!$A$10:$P$994,3,FALSE))","v":""},{"$f":"IF($B23=\"\",\"\",VLOOKUP($B23,カードリスト!$A$10:$P$994,4,FALSE))","v":""},{"$f":"IF($B23=\"\",\"\",VLOOKUP($B23,カードリスト!$A$10:$P$994,5,FALSE))","v":""}]
[19,null,null,{"$f":"IF($B24=\"\",\"\",VLOOKUP($B24,カードリスト!$A$10:$P$994,3,FALSE))","v":""},{"$f":"IF($B24=\"\",\"\",VLOOKUP($B24,カードリスト!$A$10:$P$994,4,FALSE))","v":""},{"$f":"IF($B24=\"\",\"\",VLOOKUP($B24,カードリスト!$A$10:$P$994,5,FALSE))","v":""}]
[20,null,null,{"$f":"IF($B25=\"\",\"\",VLOOKUP($B25,カードリスト!$A$10:$P$994,3,FALSE))","v":""},{"$f":"IF($B25=\"\",\"\",VLOOKUP($B25,カードリスト!$A$10:$P$994,4,FALSE))","v":""},{"$f":"IF($B25=\"\",\"\",VLOOKUP($B25,カードリスト!$A$10:$P$994,5,FALSE))","v":""}]
[21,null,null,{"$f":"IF($B26=\"\",\"\",VLOOKUP($B26,カードリスト!$A$10:$P$994,3,FALSE))","v":""},{"$f":"IF($B26=\"\",\"\",VLOOKUP($B26,カードリスト!$A$10:$P$994,4,FALSE))","v":""},{"$f":"IF($B26=\"\",\"\",VLOOKUP($B26,カードリスト!$A$10:$P$994,5,FALSE))","v":""}]
[22,null,null,{"$f":"IF($B27=\"\",\"\",VLOOKUP($B27,カードリスト!$A$10:$P$994,3,FALSE))","v":""},{"$f":"IF($B27=\"\",\"\",VLOOKUP($B27,カードリスト!$A$10:$P$994,4,FALSE))","v":""},{"$f":"IF($B27=\"\",\"\",VLOOKUP($B27,カードリスト!$A$10:$P$994,5,FALSE))","v":""}]
[23,null,null,{"$f":"IF($B28=\"\",\"\",VLOOKUP($B28,カードリスト!$A$10:$P$994,3,FALSE))","v":""},{"$f":"IF($B28=\"\",\"\",VLOOKUP($B28,カードリスト!$A$10:$P$994,4,FALSE))","v":""},{"$f":"IF($B28=\"\",\"\",VLOOKUP($B28,カードリスト!$A$10:$P$994,5,FALSE))","v":""}]
[24,null,null,{"$f":"IF($B29=\"\",\"\",VLOOKUP($B29,カードリスト!$A$10:$P$994,3,FALSE))","v":""},{"$f":"IF($B29=\"\",\"\",VLOOKUP($B29,カードリスト!$A$10:$P$994,4,FALSE))","v":""},{"$f":"IF($B29=\"\",\"\",VLOOKUP($B29,カードリスト!$A$10:$P$994,5,FALSE))","v":""}]
[25,null,null,{"$f":"IF($B30=\"\",\"\",VLOOKUP($B30,カードリスト!$A$10:$P$994,3,FALSE))","v":""},{"$f":"IF($B30=\"\",\"\",VLOOKUP($B30,カードリスト!$A$10:$P$994,4,FALSE))","v":""},{"$f":"IF($B30=\"\",\"\",VLOOKUP($B30,カードリスト!$A$10:$P$994,5,FALSE))","v":""}]
[26,null,null,{"$f":"IF($B31=\"\",\"\",VLOOKUP($B31,カードリスト!$A$10:$P$994,3,FALSE))","v":""},{"$f":"IF($B31=\"\",\"\",VLOOKUP($B31,カードリスト!$A$10:$P$994,4,FALSE))","v":""},{"$f":"IF($B31=\"\",\"\",VLOOKUP($B31,カードリスト!$A$10:$P$994,5,FALSE))","v":""}]
[27,null,null,{"$f":"IF($B32=\"\",\"\",VLOOKUP($B32,カードリスト!$A$10:$P$994,3,FALSE))","v":""},{"$f":"IF($B32=\"\",\"\",VLOOKUP($B32,カードリスト!$A$10:$P$994,4,FALSE))","v":""},{"$f":"IF($B32=\"\",\"\",VLOOKUP($B32,カードリスト!$A$10:$P$994,5,FALSE))","v":""}]
[28,null,null,{"$f":"IF($B33=\"\",\"\",VLOOKUP($B33,カードリスト!$A$10:$P$994,3,FALSE))","v":""},{"$f":"IF($B33=\"\",\"\",VLOOKUP($B33,カードリスト!$A$10:$P$994,4,FALSE))","v":""},{"$f":"IF($B33=\"\",\"\",VLOOKUP($B33,カードリスト!$A$10:$P$994,5,FALSE))","v":""}]
[29,null,null,{"$f":"IF($B34=\"\",\"\",VLOOKUP($B34,カードリスト!$A$10:$P$994,3,FALSE))","v":""},{"$f":"IF($B34=\"\",\"\",VLOOKUP($B34,カードリスト!$A$10:$P$994,4,FALSE))","v":""},{"$f":"IF($B34=\"\",\"\",VLOOKUP($B34,カードリスト!$A$10:$P$994,5,FALSE))","v":""}]
[30,null,null,{"$f":"IF($B35=\"\",\"\",VLOOKUP($B35,カードリスト!$A$10:$P$994,3,FALSE))","v":""},{"$f":"IF($B35=\"\",\"\",VLOOKUP($B35,カードリスト!$A$10:$P$994,4,FALSE))","v":""},{"$f":"IF($B35=\"\",\"\",VLOOKUP($B35,カードリスト!$A$10:$P$994,5,FALSE))","v":""}]
[31,null,null,{"$f":"IF($B36=\"\",\"\",VLOOKUP($B36,カードリスト!$A$10:$P$994,3,FALSE))","v":""},{"$f":"IF($B36=\"\",\"\",VLOOKUP($B36,カードリスト!$A$10:$P$994,4,FALSE))","v":""},{"$f":"IF($B36=\"\",\"\",VLOOKUP($B36,カードリスト!$A$10:$P$994,5,FALSE))","v":""}]
[32,null,null,{"$f":"IF($B37=\"\",\"\",VLOOKUP($B37,カードリスト!$A$10:$P$994,3,FALSE))","v":""},{"$f":"IF($B37=\"\",\"\",VLOOKUP($B37,カードリスト!$A$10:$P$994,4,FALSE))","v":""},{"$f":"IF($B37=\"\",\"\",VLOOKUP($B37,カードリスト!$A$10:$P$994,5,FALSE))","v":""}]
[33,null,null,{"$f":"IF($B38=\"\",\"\",VLOOKUP($B38,カードリスト!$A$10:$P$994,3,FALSE))","v":""},{"$f":"IF($B38=\"\",\"\",VLOOKUP($B38,カードリスト!$A$10:$P$994,4,FALSE))","v":""},{"$f":"IF($B38=\"\",\"\",VLOOKUP($B38,カードリスト!$A$10:$P$994,5,FALSE))","v":""}]
[34,null,null,{"$f":"IF($B39=\"\",\"\",VLOOKUP($B39,カードリスト!$A$10:$P$994,3,FALSE))","v":""},{"$f":"IF($B39=\"\",\"\",VLOOKUP($B39,カードリスト!$A$10:$P$994,4,FALSE))","v":""},{"$f":"IF($B39=\"\",\"\",VLOOKUP($B39,カードリスト!$A$10:$P$994,5,FALSE))","v":""}]
[35,null,null,{"$f":"IF($B40=\"\",\"\",VLOOKUP($B40,カードリスト!$A$10:$P$994,3,FALSE))","v":""},{"$f":"IF($B40=\"\",\"\",VLOOKUP($B40,カードリスト!$A$10:$P$994,4,FALSE))","v":""},{"$f":"IF($B40=\"\",\"\",VLOOKUP($B40,カードリスト!$A$10:$P$994,5,FALSE))","v":""}]
[36,null,null,{"$f":"IF($B41=\"\",\"\",VLOOKUP($B41,カードリスト!$A$10:$P$994,3,FALSE))","v":""},{"$f":"IF($B41=\"\",\"\",VLOOKUP($B41,カードリスト!$A$10:$P$994,4,FALSE))","v":""},{"$f":"IF($B41=\"\",\"\",VLOOKUP($B41,カードリスト!$A$10:$P$994,5,FALSE))","v":""}]
[37,null,null,{"$f":"IF($B42=\"\",\"\",VLOOKUP($B42,カードリスト!$A$10:$P$994,3,FALSE))","v":""},{"$f":"IF($B42=\"\",\"\",VLOOKUP($B42,カードリスト!$A$10:$P$994,4,FALSE))","v":""},{"$f":"IF($B42=\"\",\"\",VLOOKUP($B42,カードリスト!$A$10:$P$994,5,FALSE))","v":""}]
[38,null,null,{"$f":"IF($B43=\"\",\"\",VLOOKUP($B43,カードリスト!$A$10:$P$994,3,FALSE))","v":""},{"$f":"IF($B43=\"\",\"\",VLOOKUP($B43,カードリスト!$A$10:$P$994,4,FALSE))","v":""},{"$f":"IF($B43=\"\",\"\",VLOOKUP($B43,カードリスト!$A$10:$P$994,5,FALSE))","v":""}]
[39,null,null,{"$f":"IF($B44=\"\",\"\",VLOOKUP($B44,カードリスト!$A$10:$P$994,3,FALSE))","v":""},{"$f":"IF($B44=\"\",\"\",VLOOKUP($B44,カードリスト!$A$10:$P$994,4,FALSE))","v":""},{"$f":"IF($B44=\"\",\"\",VLOOKUP($B44,カードリスト!$A$10:$P$994,5,FALSE))","v":""}]
[40,null,null,{"$f":"IF($B45=\"\",\"\",VLOOKUP($B45,カードリスト!$A$10:$P$994,3,FALSE))","v":""},{"$f":"IF($B45=\"\",\"\",VLOOKUP($B45,カードリスト!$A$10:$P$994,4,FALSE))","v":""},{"$f":"IF($B45=\"\",\"\",VLOOKUP($B45,カードリスト!$A$10:$P$994,5,FALSE))","v":""}]

{"sheet":"印刷用シート","index":2,"n_rows":36,"n_cols":2,"rows_kept":36,"cut":false,"hidden":false,"merged":[[34,1,34,2],[1,1,1,2],[4,1,4,2],[3,1,3,2],[32,1,32,2],[6,1,6,2]]}
[]
[null,"～ デッキ記入シート ～"]
[]
[null,"ハンドルネーム"]
[]
[]
[null,"●デッキシートに記載した以外のデッキの使用は禁止します。"]
[]
[null,"マスター"]
[]
[null,"カードリスト"]
[]
[]
[]
[]
[]
[]
[]
[]
[]
[]
[]
[]
[]
[]
[]
[]
[]
[]
[]
[]
[]
[null,"※デッキ内容や対戦内容、大会の様子をWEBなどで公開する場合があります。予めご了承ください。"]
[]
[null,"運営スタッフ記入欄"]
[null,"プレイヤーNo."]

{"sheet":"カードリスト","index":3,"n_rows":289,"n_cols":16,"rows_kept":289,"cut":false,"hidden":false,"merged":[]}
["name","type","color","category","cost","atk","hp","ＷＴ","cc","keywards","effect１","effect2","effect3","rality","flaver","illustllator"]
["時任サクジ","ルーンブレイダー","赤/白","マスター",null,null,null,null,null,null,null,null,null,null,null,"日向悠二"]
["星崎イノリ","フェアリーテイマー","赤/緑","マスター",null,null,null,null,null,null,null,null,null,null,null,"日向悠二"]
["勝浦カヨ","シャーマン","黒/緑","マスター",null,null,null,null,null,null,null,null,null,null,null,"日向悠二"]
["エリザベス・ロンズデール","デモンルーラー","黒/白","マスター",null,null,null,null,null,null,null,null,null,null,null,"日向悠二"]
["シグ・マクダネル","ジェネラル","白/緑","マスター",null,null,null,null,null,null,null,null,null,null,null,"日向悠二"]
["マオ・ニャン","ウィザード","黒/赤","マスター",null,null,null,null,null,null,null,null,null,null,null,"日向悠二"]
["ヨルン・アーベル","ネクロマンサー","黒/青","マスター",null,null,null,null,null,null,null,null,null,"O",null,"日向悠二"]
["ヒルダ・アーベル","ドールマスター","白/青","マスター",null,null,null,null,null,null,null,null,null,"O",null,"日向悠二"]
["死者の蘇生","魔術師","黒","スキル",1,null,null,3,null,null,"あなたのタイムラインにある、コストが６以下のミニオンカードを１枚選び、あなたのフィールドにリバース状態で置く。",null,null,"R","魔術師にとって死は終わりではない。","medilore"]
["リトルスカルデビル","悪魔","黒","ミニオン",1,2,1,2,null,"威圧2",null,null,null,"C","「死んだ後に残るのは骨だけだよ」",6624]
["下忍カスミ","忍者","黒","ミニオン",1,0,1,3,null,null,"「くない投げ」\n《配置時／レーン移動時》：相手のフィールドにあるユニット１体を選んで１ダメージを与える。",null,null,"C","「したっぱだからって甘く見ないでください！」",6624]
["スチームメイド・ステラ","蒸気機械/メイド","黒","ミニオン",2,2,2,3,null,null,"「お片づけ」\n《配置時／レーン移動時》：あなたのタイムラインのウェイトゾーンⅡ～Ⅳにある黒属性を持つカードを１枚選びＷＴ－１する。",null,null,"C","「お掃除の邪魔ですご主人様」","リウイチ"]
["小さき怨恨アリス","ゴースト","黒","ミニオン",2,1,1,4,null,"再生/移動攻撃",null,null,null,"C","「アリスと一緒に遊んでくれるの？」","リウイチ"]
["ファミリアキャット『セリーヌ』","獣","黒","ロード",2,2,2,null,0,"速攻","「黒猫の導き」\n《自ターン中任意》【疲労】：あなたのタイムラインにあるスキルカードを１枚選びＷＴ－１する。スキルカードが黒属性を持つ場合、代わりにＷＴ－２する。",null,null,"L","「マスターの為にがんばるにゃ！」","高畑雪"]
["ダークフレイム","悪魔/魔術師","黒","スキル",3,null,null,3,null,null,"相手のフィールドにあるユニット１体を選び２ダメージを与える。",null,null,"C","熱の無い炎は魂を灼く。","葉庭"]
["十字手裏剣","忍者","黒","スキル",3,null,null,3,null,null,"相手のフィールドにある全ユニットに１ダメージを与える。",null,null,"R","忍びの里では、この手裏剣を使いこなせなければ、一人前とは呼ばれない。","葉庭"]
["蒸気装甲兵","蒸気機械/戦士","黒","ミニオン",3,2,3,2,null,"威圧3",null,null,null,"C","「シュコオオォォ…！フシュオオオォォ…！」","大出リコ"]
["スチームライダー","蒸気機械/騎馬","黒","ミニオン",3,2,1,3,null,"直進","「疾走する鉄馬」\n《あなたが黒属性を持つスキルかアーツをプレイした時》：このカードが、あなたのタイムラインのウェイトゾーンⅠ～Ⅱにある場合、このカードをあなたのフィールドに配置しても良い。","「黒鋼の輝き」\n《このカードが、タイムラインから直接フィールドに配置された時》：このカードは、ターン終了時まで「速攻※」を得る。※速攻（このミニオンはフィールドに配置したターン中でも、疲労をともなう全行動が可能。）",null,"R","「その程度じゃ俺の愛馬は止めらんねえぜ！」","大出リコ"]
["蒸気銃士カイム","蒸気機械","黒","ミニオン",3,2,2,3,null,null,"「スチームライフル」\n《配置時／レーン移動時》：相手のフィールドにあるユニット１体を選び１ダメージを与える。",null,null,"C","「構え、狙え、撃て」","リウイチ"]
["チェインライトニング","魔術師","黒","スキル",4,null,null,3,null,null,"相手のフィールドにあるミニオン１体かロード１体を選び２ダメージを与える。この効果で、ミニオンかロードをブレイクした場合、相手のマスターに２ダメージを与える。",null,null,"R","「雷よ貫き爆ぜよ！」","葉庭"]
["黒騎士ライオネル","蒸気機械/騎士","黒","ミニオン",4,4,3,2,null,"威圧3",null,null,null,"C","「我を畏れぬならば向かってくるが良い」","蒲焼鰻"]
["デスクラウド","魔術師","黒","アーツ",5,null,null,null,null,null,"全てのフィールドにある全ユニットに４ダメージを与える。",null,null,"R","強い毒は使い手をも蝕む。","葉庭"]
["がしゃどくろ","妖怪","黒","ミニオン",5,3,3,4,null,"再生",null,null,null,"C","「からんころん…骨の音…」","TOKIAME"]
["装甲巨人リノセロンテ","蒸気機械","黒","ミニオン",6,5,6,3,null,"中央配置特性2",null,null,null,"R","「起動シーケンスオールグリーン。リノセロンテ出撃するよ」","大出リコ"]
["吸血姫『アコニー』","吸血鬼/姫","黒","ロード",6,6,5,null,2,"速攻","「魅了の魔眼」\n《自ターン中任意》【１ＭＰ】：相手のフィールドにあるミニオン１体を選び、ターン終了時まで「ブロック不可※」を与える。※ブロック不可（そのミニオンはブロッカーになれない。）",null,null,"L","「ふふふ、私に仕える名誉と幸運に泣いて喜ぶといいわ！」",6624]
["リトルドラコ","竜族","赤","ミニオン",1,1,1,3,null,null,"「炎の吐息」\n《配置時》：相手のフィールドにあるミニオン１体を選び１ダメージを与える。",null,null,"R","「熱いの好き？それとも嫌い？」","しろいはくと"]
["見習い剣士ヒナコ","侍","赤","ミニオン",1,2,1,2,null,"移動攻撃",null,null,null,"C","「私だって練習したんです！」",6624]
["火竜炎撃","陰陽師","赤","アーツ",2,null,null,null,null,null,"相手のフィールドにある全ミニオンに２ダメージを与える。",null,null,"R","「炎の竜よ舞い踊れ」","葉庭"]
["白刃一閃","侍/剣術","赤","スキル",2,null,null,2,null,null,"あなたのマスターは、「ＡＴＫ２」でアタックを行う。",null,null,"C","ただシンプルな一閃。でも命を刈るには必要十分。","葉庭"]
["ゴブリンソルジャー・リナ","鬼族","赤","ミニオン",2,2,2,2,null,"移動攻撃","「集合の笛」\n《配置時／レーン移動時》：あなたのタイムラインのウェイトゾーンⅡ～Ⅳにある、タイプ「鬼族」を持つカードを１枚選びＷＴ－１しても良い。",null,null,"C","ぱおー♪「みんな集合ー！」","しろいはくと"]
["かまいたちの末妹シグレ","妖怪/かまいたち","赤","ミニオン",2,2,1,3,null,"速攻/直進",null,null,null,"C","「ふぇ～ん。ちい姉ちゃん～ちょっとまってよ～」",6624]
["猫又オリョウ","妖怪/獣","赤","ミニオン",2,2,2,3,null,null,"「猫の手のお手伝い」\n《配置時／レーン移動時》：あなたは、あなたのタイムラインのウェイトゾーンⅡ～Ⅳにある赤属性を持つカードを１枚選びＷＴ－１する。",null,null,"C","「にゃーん！猫の手はいらんかにゃー？」",6624]
["座敷わらし『シノ』","妖怪/座敷わらし","赤","ロード",2,0,3,null,0,"速攻","「幸運の運び手」\n《自ターン中任意》【疲労】:あなたのタイムラインにあるカードを３枚まで選んでＷＴ－１する。",null,null,"L","「シノがまもってあげるね、ごしゅじんさま」",6624]
["オーガアサシン","鬼族/暗殺者","赤","ミニオン",3,2,3,2,null,"対マスター特効1",null,null,null,"C","「貴様の命…頂戴する」","高畑雪"]
["アサルトランサー","戦士","赤","ミニオン",3,1,3,2,null,"強襲/右配置特性1",null,null,null,"R","「右舷から攻め上がるぞ！ついてこい！」","高畑雪"]
["フレアランス","魔術師","赤","スキル",4,null,null,3,null,null,"相手のフィールドにあるミニオンを１体選び６ダメージを与える。",null,null,"C","「ほのおのやり！あいつをつらぬけぇっ！！」","葉庭"]
["烏天狗キッカ","妖怪/天狗","赤","ミニオン",4,3,2,3,null,"速攻",null,null,null,"R","「その隙、見逃さぬぞ！」","TOKIAME"]
["ヘヴィガンナー","戦士","赤","ミニオン",4,4,4,2,null,"直進/衝撃1",null,null,null,"C","「こいつの威力はちょっとしたもんだぜ？小回りが利かないぐらいご愛敬ってもんだ」","高畑雪"]
["炎竜アレクサンドラ","竜族","赤","ミニオン",5,4,5,3,null,null,"「ファイアーブレス」\n《配置時／レーン移動》：相手のフィールドにあるミニオン１体を選び２ダメージを与える。",null,null,"C","「竜の吐息は灼熱、ため息は焦熱」","しろいはくと"]
["フレイムメイジ『ルナール』","魔術師","赤","ロード",5,4,5,null,1,"強襲","「焼き尽くしてあげる！」\n《配置時》：相手のフィールドにあるミニオン１体を選び３ダメージを与える。",null,null,"L","「究極の魔術は炎の魔術って事を証明するわ！」",6624]
["エクスプロージョン","魔術師","赤","アーツ",6,null,null,null,null,null,"全てのフィールドにある全ミニオンに６ダメージを与える。",null,null,"R","極度の高熱。爆発は結果に過ぎない。","葉庭"]
["オーガクイーン","鬼族","赤","ミニオン",6,6,5,3,null,"衝撃2/移動攻撃",null,null,null,"R","「さあ、次に潰されたい奴はどいつだい？」","TOKIAME"]
["ライトヒール","神聖","白","スキル",1,null,null,4,null,null,"あなたのマスターは１点のライフを得る。その後、あなたのタイムラインのウェイトゾーンⅡ～Ⅳにある白属性を持つカードを１枚選びＷＴ－１する。",null,null,"C","王の手は癒しの手。","葉庭"]
["スクワイア","騎士","白","ミニオン",1,1,2,2,null,"移動攻撃",null,null,null,"C",null,"蒲焼鰻"]
["白狐ククリ","妖怪/妖狐","白","ミニオン",1,2,1,2,null,"効果ダメージ無効",null,null,null,"R","「わわ！？みつかっちゃった！？」",6624]
["シルフィーナイト","精霊/騎士","白","ミニオン",2,2,2,2,null,"右配置特性1",null,null,null,"C","「疾風を纏え我が剣よ！」","茜屋"]
["すねこすり","妖怪/獣","白","ミニオン",2,1,2,3,null,null,"「すねこすり」\n《配置時／レーン移動時》：相手のフィールドにあるコストが２以下のミニオン１体を選んで、相手のスタンバイゾーンに置く。この効果は、相手のスタンバイゾーンに空きがない場合は発動しない。",null,null,"R",null,6624]
["お守り天使ミュゼル","天使","白","ミニオン",2,2,2,3,null,null,"「お守り天使」\n《配置時／レーン移動時》：あなたのタイムラインのウェイトゾーンⅡ～Ⅳにある白属性を持つカードを１枚選びＷＴ－１する。",null,null,"C",null,"めぐもけ"]
["アンサモン","魔術師","白","アーツ",3,null,null,null,null,null,"相手のフィールドにあるミニオン１体を選び、相手のタイムラインのウェイトゾーンⅣに置く。",null,null,"C","「退去せよ汝、異界の者よ！ここは汝の世界に非ず！」","葉庭"]
["ハイビショップ","ビショップ","白","ミニオン",3,2,3,4,null,null,"「癒しの光を！」\n《配置時／レーン移動時》：あなたのマスターは１点のライフを得る。その後、あなたのタイムラインのウェイトゾーンⅡ～Ⅳにある白属性を持つカードを１枚選んでＷＴ－１する。",null,null,"R","「どこかお怪我はありませんか－」","めぐもけ"]
["小天使アロエル","天使","白","ミニオン",3,2,2,3,null,"先制",null,null,null,"C","「わたしの矢、とっても痛いですのよ？」","高畑雪"]
["クイックリカバー","ビショップ","白","スキル",4,null,null,3,null,null,"あなたのフィールドにある疲労状態のミニオン１体を選び活性状態にする。",null,null,"C",null,"葉庭"]
["アークエンジェル","天使","白","ミニオン",4,3,4,2,null,"効果ダメージ無効",null,null,null,"C","「私に邪悪な魔法は通じません」",6624]
["ホーリーバニッシュ","魔術師","白","アーツ",5,null,null,null,null,null,"相手のフィールドにあるコストが６以下のロード１体を選びブレイクする。",null,null,"R","その清浄なる一撃は、異界の王さえ揺るがし得る。","葉庭"]
["霧の精霊ミスティ","精霊","白","ミニオン",5,4,6,3,null,null,null,null,null,"C","「私の霧でギュ～ッてしてあげるっ」","高畑雪"]
["白騎士ローズマリー","騎士","白","ミニオン",5,4,5,3,null,"中央配置特性2/直進",null,null,null,"R",null,"茜屋"]
["白竜の娘『パンドラ』","竜族","白","ロード",5,4,5,null,1,null,"「白竜の息吹」\n《配置時》：相手のフィールドにあるミニオンからコストの合計が５以下になるように好きな数を選んでブレイクする。その後、そうしてブレイクしたミニオンの数に等しいライフを得る。",null,null,"L","「ひれ伏しなさい、パンドラの名において！」","水本正"]
["ホーリーゴレム・ルチア","ゴレム","白","ミニオン",6,4,7,3,null,"貫通2","\n",null,null,"R",null,"茜屋"]
["白の剛剣『カシナート』","戦士","白","ロード",6,5,6,null,1,"速攻/衝撃2",null,null,null,"L","「雑魚共が…退けっ…！！」","高畑雪"]
["ウォークライ","戦士","緑","スキル",1,null,null,2,null,null,"あなたのフィールドにあるミニオンかロード１体を選び、ターン終了時まで「＋１／＋１」の修正を与える。",null,null,"C","その叫びは、魂を震わせる。","葉庭"]
["クローネの森林警備員","クローネ","緑","ミニオン",1,1,2,2,null,"移動攻撃",null,null,null,"C","「森を荒らす子にはお仕置きだよっ！」",6624]
["新緑の精霊","精霊","緑","ミニオン",1,1,1,3,null,null,"「春の芽吹き」\n《あなたが緑属性を持つミニオンをフィールドに配置した時》：このカードがあなたのタイムラインのウェイトゾーンⅠ～Ⅱにある場合、あなたのフィールドに配置しても良い。","「新緑の輝き」\n《このカードが、タイムラインから直接フィールドに配置された時》：このカードは、ターン終了時まで「速攻※」を得る。※速攻（このミニオンはフィールドに配置したターン中でも、疲労をともなう全行動が可能。）",null,"R",null,"高畑雪"]
["花冠の戦士エリン","フェレス/戦士","緑","ミニオン",2,2,2,3,null,null,"「春の祝福」\n《配置時／レーン移動時》：あなたのタイムラインのウェイトゾーンⅡ～Ⅳにある、緑属性を持つカードを１枚選びＷＴ－１する。",null,null,"C",null,6624]
["フェレスの狩人セシル","フェレス/狩人","緑","ミニオン",2,2,2,2,null,null,"「狩りのお時間」\n《配置時／レーン移動時》：相手のフィールドにある、コストが１以下のミニオン１体を選んでブレイクする。",null,null,"C","「弓の極意？一撃で斃す事だぜ」",6624]
["樹上の狙撃手『アセロラ』","フェレス/レンジャー","緑","ロード",2,3,3,null,0,null,"「樹上からの狙撃」\n《あなたがフィールドにミニオンを配置した時》：相手のフィールドにあるミニオンを１体選んで１ダメージを与える。",null,null,"L","「弓の極意？死角から射る事よ」",6624]
["スマッシュブロー","戦士/格闘","緑","スキル",3,null,null,3,null,null,"あなたのマスターは「ＡＴＫ３・貫通２※」でアタックを行う。\n※貫通２（この効果によるバトルで相手のミニオン／ロードをアタックによりブレイクした時、２ダメージを相手のマスターに与える。）",null,null,"C",null,"medilore"]
["鷹の目のユラン","クローネ/戦士","緑","ミニオン",3,3,2,2,null,"貫通1",null,null,null,"C","「緋硬石の刃は鋭いぞ…？」",6624]
["クローネの魔法騎士","クローネ/騎士","緑","ミニオン",3,2,3,2,null,"効果ダメージ無効",null,null,null,"R","「私が相手の魔法を食い止めます！」",6624]
["大物狙いのオルク","セス/狩人","緑","ミニオン",3,2,3,3,null,null,"「大物狩り」\n《アタック時》：アタックターゲットがＨＰを５以上持つミニオンだった場合、そのミニオンをブレイクする。",null,null,"R",null,"高畑雪"]
["ザップ","戦士","緑","スキル",4,null,null,3,null,null,"相手のフィールドにあるミニオン１体を選び、相手のスタンバイゾーンに置く。相手のスタンバイゾーンに空きがなかった場合は、そのミニオンを相手のタイムラインのウェイトゾーンⅠに置く。",null,null,"C","神速の拳が機先を制す","medilore"]
["樹海の戦士カルドス","フェレス/戦士","緑","ミニオン",4,4,3,2,null,"対マスター特効1",null,null,null,"C","「森ノ敵…スベテ倒ス…！」","大出リコ"]
["ハイドルイド・サーリャ","ドルイド","緑","ミニオン",4,3,3,3,null,null,"「ドルイドの加護」\n《配置時／レーン移動時》：あなたのフィールドにある、このカード以外のミニオン１体を選んで、ターン終了時まで「＋２／＋２」の修正を与える。",null,null,"R",null,"水本正"]
["女王の護衛戦士リコッテ","フェレス/戦士","緑","ミニオン",5,4,5,3,null,null,"「護衛部隊の招集」\n《配置時／レーン移動時》：あなたのタイムラインのウェイトゾーンⅠ～Ⅱにある、コストが４以下のミニオンを１体選んで、あなたのフィールドに配置しても良い。",null,null,"C","「ものども出会え！女王陛下をお守りするのだ！」",6624]
["一斉攻撃","戦士","緑","アーツ",6,null,null,null,null,null,"あなたのスタンバイゾーンと、タイムラインのウェイトゾーンⅠ～Ⅲから、緑属性を持つミニオンを好きな枚数選び、あなたのフィールドに置く。こうして配置したミニオンは、ターン終了時まで「強襲※１」と「貫通２※２」を持つ。\n※１強襲（そのミニオンは、フィールドに配置したターン中でも、ミニオンゾーンのアタックのみ可能。）\n※２貫通２（そのミニオンが相手のミニオン／ロードをアタックによりブレイクした時、２ダメージを相手のマスターに与える。）",null,null,"R","「みんなでいくよ！せ～のっ！」","里村響"]
["樹木兵マリー＆チコリー","クローネ/精霊","緑","ミニオン",6,6,6,3,null,"直進",null,null,null,"R","「チコリーちゃん！あなたの力をみせてあげるの！」",6624]
["怪力無双の猫娘『シグニャー』","フェレス/戦士","緑","ロード",7,6,6,null,2,"速攻/直進","「突撃にゃー！」\n《配置時》：あなたのスタンバイゾーンにあるミニオンを好きな枚数選び、あなたのフィールドに配置しても良い。そうして配置したミニオンに、ターン終了時まで「速攻※」を与える。※速攻（そのミニオンはフィールドに配置したターン中でも、疲労をともなう全行動が可能。）",null,null,"L","「いっせいにいくのにゃー！」","水本正"]
["ブラッドスウォーム","魔術師","黒/赤","スキル",1,null,null,3,null,null,"相手のマスターに１ダメージを与え、相手のスタンバイゾーンかタイムラインにあるカードを１枚選んでＷＴ＋１する。",null,null,"C","毒使いの技は、盾でも鎧でも防げない。","葉庭"]
["ジャック・オ・ランタン","妖精/ゴースト","黒/赤","ミニオン",1,1,1,2,null,null,"「冥府の案内人」\n《配置時／レーン移動時》：相手のマスターに１ダメージを与える。",null,null,"C","「冥府も住めばいいところだよ～」","大出リコ"]
["マジックミサイル","魔術師","黒/赤","スキル",2,null,null,2,null,null,"相手のフィールドにあるユニットを２体まで選び、１ダメージを与える。",null,null,"C","魔法の矢が狙いを違えることはない。","葉庭"]
["セスの毒使い","セス/毒使い","黒/赤","ミニオン",2,2,1,4,null,null,"「麻痺毒」\n《配置時》：相手のスタンバイゾーンかタイムラインにあるカードを１枚選びＷＴ+１する。",null,null,"R","「この子の名前はララちゃん。この子の毒なら眠るように死ねるよ」",6624]
["ブルーフレイムピラー","魔術師","黒/赤","アーツ",4,null,null,null,null,null,"相手のフィールドにあるミニオン１体かロード１体を選んで４ダメージを与える。この効果でミニオンをブレイクした場合、そのミニオンを除外する。",null,null,"R","赤い炎は肉まで、青い炎は骨まで。","葉庭"]
["死神少女『ルルシュ』","死神","黒/赤","ロード",5,4,4,null,1,"先制/強襲","「命の刈り取り」\n《配置時》：相手のフィールドにあるユニット１体を選び３ダメージを与える。この効果でミニオンをブレイクした場合、そのミニオンを除外する。",null,null,"L","「命の光が、一つ、二つ…」","大出リコ"]
["白面金毛九尾『タマモ』","妖怪/妖狐","黒/赤","ロード",7,5,6,null,2,"強襲","「九尾」\n《配置時／あなたのメインフェイズ開始時》：全てのフィールドにある、このカードとあなたのマスターを除く全ユニットに３ダメージを与える。",null,null,"LR","「妾はマスターはんの愛以外、な～んもいりまへんゆえなぁ」",6624]
["カーバンクル","魔獣/精霊","黒/赤","ミニオン",3,2,3,2,null,"移動攻撃","「魔力の宝石」\n《配置時／レーン移動時》：あなたのタイムラインのウェイトゾーンⅡ～Ⅳにある黒属性か赤属性を持つカードを１枚選んでＷＴ－１しても良い。",null,null,"C",null,"しろいはくと"]
["スロウ","魔術師","黒/白","スキル",1,null,null,3,null,null,"相手のタイムラインにあるカードを２枚まで選んでＷＴ＋１する。",null,null,"C","時も等しくは流れない。","葉庭"]
["リトルカースウィッチ","魔女","黒/白","ミニオン",3,2,2,4,null,null,"「のろいます」\n《配置時／レーン移動時》：相手のフィールドにあるコストが２以下のミニオン１体を選びブレイクする。",null,null,"R","「呪いのコツはねー、相手のことをうーんと想う事！」","高畑雪"]
["ヴァンパイアタッチ","吸血鬼/魔術師","黒/白","スキル",4,null,null,3,null,null,"相手のフィールドにあるユニット１体を選んで２ダメージを与える。あなたのマスターは、この効果で与えたダメージに等しいライフを得る。",null,null,"C",null,"葉庭"]
["サキュバス","悪魔","黒/白","ミニオン",5,3,5,3,null,null,"「エナジードレイン」\n《配置時》：相手のマスターに２ダメージを与え、あなたのマスターはこの効果で与えたダメージに等しいライフを得る。",null,null,"C","「あなたにとびっきりの快楽をあげる。代わりにちょっと命をちょうだい」",6624]
["黒鍵の騎士『マリアベル』","騎士/魔術師","黒/白","ロード",5,4,5,null,1,null,"「黒鍵の力」\n《配置時》：相手のフィールドにあるミニオン１体を選び、相手のタイムラインのウェイトゾーンⅣに置く。","「魔力のかんぬき」\n《自ターン中、このカードがバトルで相手のミニオンをブレイクした時》：ブレイクしたカードを相手のタイムラインのウェイトゾーンⅣに置く。",null,"L","「黒の鍵、時の扉に鍵を掛けなさい」",6624]
["エンジェリックノヴァ","天使/魔術師","黒/白","アーツ",6,null,null,null,null,null,"全てのフィールドにある、コストが５以下の全ミニオンを、それぞれのタイムラインのウェイトゾーンⅣに置く。",null,null,"R","天使は平和をもたらすためには訪れない。","medilore"]
["告死天使『アズラエル』","天使","黒/白","ロード",8,6,7,null,2,"速攻/効果ダメージ無効","「死を告げる使徒」\n《配置時》：全てのフィールドとスタンバイゾーンにある、全ミニオンとコストが６以下のロードをブレイクする。",null,null,"LR","「わがマスターに代わって、死を告げる。速やかに滅べ」","形状"]
["戒めの呪言","呪術","黒/緑","アーツ",1,null,null,null,null,null,"相手のタイムラインかスタンバイゾーンにあるカードを１枚選んで除外する。",null,null,"C","言霊は鎖にもなる。","里村響"]
["衰弱のまじない","呪術","黒/緑","スキル",2,null,null,3,null,null,"相手のフィールドにあるミニオン１体かロード１体を選んで、ターン終了時まで「－２／－２」の修正を与える。",null,null,"C","どんな屈強な英雄も疲労には抗えない。","里村響"]
["神託の巫女ナユタ","巫女","黒/緑","ミニオン",3,2,2,3,null,null,"「巫女の託宣」\n《配置時》：あなたはカードを１枚引き、あなたのマスターはライフを１点得る。",null,null,"R","「神のお言葉、頂きました」","TOKIAME"]
["ヤタガラス","神族/精霊","黒/緑","ミニオン",3,2,3,2,null,"移動攻撃","「八咫烏の導き」\n《配置時／レーン移動時》：あなたのタイムラインのウェイトゾーンⅡ～Ⅳにある、〚黒属性か緑属性〛を持つカードを１枚選んでＷＴ－１する。",null,null,"R","「心配いらないよ。三本目の足は、一本目よりずっと便利なんだから」","大出リコ"]
["神代の剛力","神族/巫術","黒/緑","アーツ",4,null,null,null,null,null,"あなたのフィールドにあるミニオン１体かロード１体を選んで、ターン終了時まで「＋４／＋４」の修正と「威圧４※」を与える。\n※威圧４（そのユニットは４以下のコストを持つミニオンにブロックされず、アタックターゲットにもされない。）",null,null,"C","神代にありて、英雄は山を動かしたと言う。","里村響"]
["結界神『アメノサギリ』","神族","黒/緑","ロード",5,3,4,null,1,"効果ダメージ無効/強襲","「霧の守り」\n《常時》：相手のフィールドにある全ミニオンとロードに、「－１／－１」の修正を与える。",null,null,"LR","「霧に迷う前に、お家へ帰るといいのよ」","形状"]
["夜叉姫『クラミツハ』","姫/鬼族","黒/緑","ロード",6,5,6,null,1,"速攻","「夜叉姫の妖刀」\n《配置時》：相手のタイムラインにあるカードの中から、合計コストが８以下になるように好きな枚数を選び除外する。",null,null,"L","「お主の魂、わらわが少しばかり頂くとしよう」","水本正"]
["かまいたちの次姉アヤメ","妖怪/かまいたち","赤/白","ミニオン",1,1,1,2,null,"速攻/移動攻撃",null,null,null,"C","「私のスピードについてこれる？」",6624]
["一の太刀","侍/剣術","赤/白","スキル",3,null,null,2,null,null,"あなたのマスターは「ＡＴＫ３」でアタックを行う。",null,null,"C","二の太刀いらずが、剣の極意なれば。","葉庭"]
["ソードダンサー","剣士/舞姫","赤/白","ミニオン",3,2,3,2,null,"移動攻撃","「幻惑の剣舞」\n《配置時／レーン移動時》：あなたのタイムラインのウェイトゾーンⅡ～Ⅳにある〚赤属性か白属性〛を持つカードを１枚選んでＷＴ－１しても良い。",null,null,"R","「この剣は舞いの為のものだけど、刃はついていてよ」","蒲焼鰻"]
["侍衆カンゲツ","侍","赤/白","ミニオン",5,4,5,4,null,"強襲/直進",null,null,null,"C","「俺の前に立つとは、覚悟は出来ているのだろうな！」","TOKIAME"]
["かまいたちの長姉『ミズキリ』","妖怪/かまいたち","赤/白","ロード",5,4,5,null,1,"強襲","「かまいたちの薬」\n《アタック時》：あなたのマスターは１点のライフを得る。その後、あなたのタイムラインにある〚赤属性か白属性〛を持つカードを１枚選んでＷＴ－１する。",null,null,"L","「いつも妹たちがお世話になっております。お礼に秘伝のお薬をお持ちしました」",6624]
["ディメンションブレード","侍/剣術","赤/白","アーツ",6,null,null,null,null,null,"あなたのマスターは「ＡＴＫ６・衝撃３※」でアタックを行う。※衝撃３（この効果によるバトルで相手マスターにダメージを与えた場合、相手のスタンバイゾーンかタイムラインにあるカードを３枚まで選んでＷＴ+１する。）",null,null,"R","「我が剣に斬れぬものなし！」","葉庭"]
["絶佳刀姫『サクヤヒメ』","侍/姫","赤/白","ロード",8,7,7,null,2,null,"「氷華絶刀」\n《配置時》：相手のフィールドにあるミニオン１体を選びブレイクする。","「血華艶舞」\n《自ターン中、このカードがバトルか効果により、相手のミニオンをブレイクした時》：このカードはターン終了時まで「速攻※」を得て、疲労を回復する。※速攻（このロードはフィールドに配置したターン中でも、疲労をともなう全行動が可能。）",null,"LR","「われ舞い閃くは氷の華。あなたには痛みのない死を捧げましょう」","TOKIAME"]
["いたずらピクシー","妖精","赤/緑","ミニオン",1,1,1,2,null,"移動攻撃","「ちょっと痛いかも？」\n《配置時／レーン移動時》：同一レーンの相手ミニオンに対し１ダメージを与える。",null,null,"C","「えへへ、隙ありだよ～」",6624]
["フェアリーダンス","妖精","赤/緑","アーツ",2,null,null,null,null,null,"あなたのフィールドにあるミニオン１体を選び、あなたのタイムラインのウェイトゾーンⅠに置く。そうした場合、相手のフィールドにあるミニオン１体を選び、相手のタイムラインのウェイトゾーンⅠに置く。",null,null,"R","「みんなでたのしく踊りましょっ！」","葉庭"]
["フォレストフェアリー","妖精","赤/緑","ミニオン",2,2,2,3,null,null,"「樹海迷宮の案内人」\n《配置時》：あなたのフィールドかタイムラインのウェイトゾーンⅡ～Ⅲにあるミニオン１体を選び、あなたのタイムラインのウェイトゾーンⅠに置いてもよい。",null,null,"R","「一名さまごあんな～い♪」","高畑雪"]
["スイッチアタック","妖精","赤/緑","アーツ",3,null,null,null,null,null,"あなたのタイムラインのウェイトゾーンⅠ～Ⅲにあるコストが６以下のミニオン１体を選び、あなたのフィールドにあるミニオン１体と位置を交換して配置する。この効果で、フィールドに配置したミニオンはターン終了時まで「速攻※」を得る。※速攻（そのミニオンはフィールドに配置したターン中でも、疲労をともなう全行動が可能。）",null,null,"C","「タッチ交代！」","葉庭"]
["ケットシーの剣士","妖精/獣","赤/緑","ミニオン",3,3,1,3,null,"先制","「にゃにゃっと見参」\n《このカードが、タイムラインから直接フィールドに配置された時》：あなたはカードを１枚引く。",null,null,"C","「ボクの剣さばきについてこられるかにゃ？」",6624]
["妖精女王『エルルーン』","妖精/女王","赤/緑","ロード",5,5,5,null,1,"効果ダメージ無効","「妖精女王の護衛」\n《配置時》：あなたのタイムラインにあるミニオンカードを１枚選び、あなたのフィールドに配置しても良い。こうして配置したミニオンはターン終了時まで「速攻※」を得る。※速攻（そのミニオンはフィールドに配置したターン中でも、疲労をともなう全行動が可能。）","「妖精女王の鼓舞」\n《自ターン中任意１回》【２ＭＰ】：あなたのフィールドにあるミニオン１体を選び、ターン終了時まで「＋３／＋３」の修正を与える。",null,"LR","「このエルルーンが、妖精たちと共に、道を指し示しましょう」",6624]
["荊棘の女王『シュカ』","精霊/女王","赤/緑","ロード",6,6,6,null,1,"速攻/貫通3","「荊棘の檻」\n《アタック時》：相手のスタンバイゾーンにあるカードを１枚選びブレイクする。",null,null,"L","「薔薇の鎖で縛ってあげる」",6624]
["救援要請","将軍","白/緑","スキル",1,null,null,3,null,null,"あなたのタイムラインのウェイトゾーンⅡ～Ⅳにあるミニオンカードを１枚選びＷＴ－１する。その後、あなたはカードを１枚引く。",null,null,"C",null,"medilore"]
["ヴァンガード・スピカ","フェレス/戦士","白/緑","ミニオン",1,1,1,4,null,null,"「援軍の先駆け」\n《配置時》：あなたの手札から、コストが４以下かつ、〚白属性か緑属性〛を持つミニオンカードを１枚選び、あなたのタイムラインのウェイトゾーンⅢに置いてもよい。",null,null,"R","「でんれ～！でんれ～なのです！」",6624]
["援軍の到着","将軍","白/緑","スキル",2,null,null,4,null,null,"あなたのタイムラインのウェイトゾーンⅠ～Ⅲにあるミニオンカード１枚を選び、あなたのフィールドに配置する。",null,null,"C",null,"葉庭"]
["将軍の大号令","将軍","白/緑","アーツ",3,null,null,null,null,null,"あなたのタイムラインのウェイトゾーンⅠ～Ⅲにあるミニオンカードからコストの合計が８以下になるように３枚まで選び、あなたのフィールドに配置する。この効果で配置したミニオンはターン終了時まで「強襲※」を得る。\n※強襲（そのミニオンは、フィールドに配置したターン中でも、ミニオンゾーンのアタックのみ可能。）",null,null,"R",null,"高畑雪"]
["パラディン・シルヴァ","騎士","白/緑","ミニオン",4,3,4,4,null,"強襲",null,null,null,"C","「安心しろ！私が来たぞ！」","大出リコ"]
["聖銀の戦乙女『リーンリーン』","ヴァルキュリア","白/緑","ロード",5,4,5,null,1,"貫通2","「戦乙女の加護」\n《常時》：あなたのフィールドにあるミニオン全てに「＋１／＋０」の修正を与える。",null,null,"L","「集いし歴戦の勇者達よ、今こそその武勇を示す時だ！」","茜屋"]
["万剣の王『スグラフ』","将軍/フェレス","白/緑","ロード",7,3,6,null,2,"速攻","「万剣の主」\n《アタック時》：このカードは、ターン終了時まで「＋X／＋0」の修正を得る。Xは、あなたのフィールド・タイムライン・スタンバイゾーンにあるミニオンの総数に等しい。",null,null,"LR","「万の剣、万の勇士よ、我が元に集え」","高畑雪"]
["ショックボルト","魔術師","黒","スキル",1,null,null,3,null,null,"相手のフィールドにあるユニット１体を選んで１ダメージを与える。この効果でブレイクしたミニオンをタイムラインに置く場合、ＷＴを＋１して置く。",null,null,"C","音のしない小さな雷も、致命の一撃たり得る。","葉庭"]
["リトルゴレム","ゴレム/魔術師","黒","ミニオン",1,2,1,2,null,"結界",null,null,null,"C","「うーん、これって何かなー？」","形状"]
["エーテル・オニキス","精霊/エーテル","黒","ミニオン",2,2,2,2,null,null,"「黒瑪瑙の加護」\n《アンロック時》：あなたのタイムラインにある黒属性を持つカードを１枚選んでＷＴ－１する。",null,null,"C","「必ず、あなたを守るわ」",6624]
["闇精シェイド","精霊","黒","ミニオン",2,2,2,3,null,"威圧2","「ダークネス」\n《常時》：同一レーンにある相手ミニオンに「－３／－０」の修正を与える。",null,null,"C","「夜が来るよ。くらーい、くらーい、夜が来るよ」","ふう茶"]
["魔法図書館の司書『フルーレティア』","魔術師/司書","黒","ロード",3,2,3,null,0,null,"「知識の泉」\n《常時》：あなたは、あなたのドローフェイズ開始時にカードを１枚引く。","「呪文の手ほどき」\n《配置時》：あなたの手札から、コストが６以下で黒属性を持つ〚スキルカードかアーツカード〛を１枚選んでアンロックしても良い。",null,"L","「もう！本は読んだら、本棚に戻しなさい！」","茜屋"]
["マナスマイト","魔術師","黒","スキル",4,null,null,4,null,null,"相手のフィールドにあるユニット１体を選んで３ダメージを与える。",null,null,"R","「タフな一撃、お見舞いするわよ！」","里村響"]
["パワードアーマー弐型","蒸気機械","黒","ミニオン",4,3,4,2,null,"跳躍","「降下攻撃」\n《アンロック時》：このカードは、ターン終了時まで「強襲」を得る。",null,null,"R","「超跳躍装置、ロック解除っ！」","形状"]
["マスターニンジャ","忍者","黒","ミニオン",6,6,4,3,null,null,"「暗殺剣」\n《配置時》：相手のフィールドにあるコストが５以下のミニオン１体を選んでブレイクする。この効果でブレイクしたミニオンをタイムラインに置く場合、ＷＴを＋１して置く。",null,null,"R","「滅せよ！」","大出リコ"]
["冥界の魔導竜『オリヴィエ』","魔術師/竜王","黒","ロード",7,4,7,null,2,"速攻","「魔力覚醒」\n《配置時》：あなたの手札から、タイプ〚「魔術師」か「魔女」〛を持つスキルカードを１枚選んで、あなたのウェイトゾーンⅠに置いても良い。","「魔導の竜」\n《自ターン中任意１回》【０ＭＰ】：あなたの〚スタンバイゾーンかタイムライン〛にあるタイプ〚「魔術師」か「魔女」〛を持つスキルカードを３枚まで選んで、その効果を任意の順番で得る。",null,"LR","「あなたに本当の魔法を教えて上げる」","形状"]
["格闘娘シャオメイ","戦士","赤","ミニオン",1,1,2,2,null,"跳躍/衝撃１",null,null,null,"C","「まだまだ、くんふーが足りないね！」","蒲焼鰻"]
["ファイアボルト","魔術師","赤","スキル",2,null,null,3,null,null,"相手のフィールドにあるミニオン１体を選んで４ダメージを与える。",null,null,"C","「炎の矢よ。過たず敵を穿て！」","葉庭"]
["エーテル・ルビー","精霊/エーテル","赤","ミニオン",2,2,2,2,null,null,"「紅玉の加護」\n《アンロック時》：あなたのタイムラインにある赤属性を持つカードを１枚選んでＷＴ－１する。",null,null,"C","「赤き加護をあなたに…」",6624]
["ソウルアクセル","戦士","赤","スキル",3,null,null,3,null,null,"あなたのフィールドにあるミニオン１体を選んで、ターン終了時まで「＋１／＋０」の修正と「速攻」を与える。",null,null,"R","「力がわいてきたよっ！」","葉庭"]
["火精ホタル","精霊","赤","ミニオン",3,1,3,2,null,"結界/右配置特性１","「ホタルノヒカリ」\n《常時》：相手のマスターが効果によりライフを得る場合、代わりに、相手のマスターは同じ点数のダメージを受ける。",null,null,"C",null,"しろいはくと"]
["ファイアデーモン","悪魔","赤","ミニオン",5,3,4,3,null,"速攻","「炎の抱擁」\n《自ターン中、このカードが、相手のマスターにダメージを与えた時》：相手のフィールドにあるミニオン１体を選んで４ダメージを与える。",null,null,"R","「ウフフ…。私の愛はちょっと熱いの」","茜屋"]
["赤龍の乗り手","竜族/戦士","赤","ミニオン",6,6,4,3,null,"強襲","「エアサポート」\n《自ターン中》：あなたのフィールドにある、このカードを除く全ミニオンに、「＋１／＋０」の修正を与える。",null,null,"R",null,"形状"]
["武具精霊『レーヴァティン』","精霊/魔剣","赤","ロード",6,4,4,null,1,null,"「業火の魔剣」\n《配置時》：このカードを除く、あなたと相手のフィールドにある全ミニオンとロードに６ダメージを与える。","「凶魔」\n《常時》：相手のフィールドにロードがある場合、このカードは「＋３／＋０」の修正と「先制」を得る。",null,"L","「全部燃やす。今すぐ燃やす」","形状"]
["境界の仙龍『ユラノ』","仙人/竜王","赤","ロード",6,5,6,null,1,"速攻/跳躍","「仙龍の飛翔術」\n《自ターン中》：あなたのフィールドにある全ユニットは「跳躍」を得る。既に「跳躍」を持っているユニットは、「跳躍」を得る代わりに「速攻」を得る。（全ユニットには、あなたのマスターも含まれる。）",null,null,"LR","「妾こそ仙界の王なり。慮外者にはお仕置きじゃ。」",6624]
["浄化の祈り","司祭","白","スキル",1,null,null,3,null,null,"相手のミニオンゾーンにある、〚リバース状態のカード１枚か、コストが１以下のミニオン１体〛を選んで相手のウェイトゾーンⅣに置く。（タイムライン上にリバース状態で置かれたカードは、スタンバイゾーンに置かれた時にオープン状態にする。）",null,null,"C",null,"ふう茶"]
["ココットのレンジャー","ココット/レンジャー","白","ミニオン",1,1,2,3,null,null,"「スネア」\n《配置時》：相手の〚スタンバイゾーンかタイムライン〛にある、コストが２以下のミニオンカード１枚を選んでＷＴ＋１する。",null,null,"C","「足止めはおまかせあれ！ですよ！」","しろいはくと"]
["エーテル・パール","精霊/エーテル","白","ミニオン",2,2,2,2,null,null,"「真珠の加護」\n《アンロック時》：あなたのタイムラインにある白属性を持つカードを１枚選んでＷＴ－１する。",null,null,"C","「お…御護りいたしますから！」",6624]
["守り神『オサキサマ』","妖狐/神族","白","ロード",2,3,3,null,0,"強襲","「守り神様」\n《常時》：相手のフィールドにある全ユニットは「速攻」を失い、また効果により「速攻」を得る事も出来ない。",null,null,"L","「あなたの側って、ちょっと落ち着くね…」","大出リコ"]
["足止めの罠","レンジャー","白","スキル",3,null,null,3,null,null,"相手のフィールドにあるコストが３以下のミニオン１体を選び、相手のウェイトゾーンⅡに置く。そうした場合、あなたのマスターは１点のライフを得る。",null,null,"C",null,"葉庭"]
["武具精霊カンショウ・バクヤ","精霊/名刀","白","ミニオン",3,3,2,3,null,null,"「守護の双剣」\n《あなたが、白属性を持つロードをフィールドに配置した時》：このカードがあなたのウェイトゾーンⅠ～Ⅱにある場合、このカードをあなたのフィールドに配置しても良い。","「双剣の追撃」\n《このカードが、タイムラインから直接フィールドに配置された時》：このカードは、ターン終了時まで「速攻※」を得る。※速攻（このミニオンはフィールドに配置したターン中でも、疲労をともなう全行動が可能。）",null,"R",null,"大出リコ"]
["武具精霊マサムネ","精霊/名刀","白","ミニオン",5,5,4,3,null,"効果ダメージ無効","「清浄なる剣閃」\n《アンロック時》：相手のミニオンゾーンにある、〚リバース状態のカード１枚かコストが４以下のミニオン１体〛を選び相手の手札に戻す。",null,null,"R","「天魔覆滅！」","TOKIAME"]
["慈愛の天使ハモニア","天使","白","ミニオン",6,4,7,2,null,"跳躍","「天使の抱擁」\n《アンロック時》：あなたのマスターは３点のライフを得る。",null,null,"R",null,"茜屋"]
["天界の光竜『アイオーン』","天使/竜王","白","ロード",7,6,7,null,2,null,"「アークブレス」\n《配置時／あなたのメインフェイズ開始時》：相手のフィールドにあるコストが６以下のロード１体までと、ミニオン１体までを選んで、ブレイクする。",null,null,"LR","「神のいかずちを受けよ」","形状"]
["樹精サクラ","精霊","緑","ミニオン",1,1,1,2,null,null,"「満開です！」\n《アンロック時》：あなたはカードを１枚引く。",null,null,"C","「たくさんたーくさん咲かせますよ！」",6624]
["部分獣化","フェレス/戦士","緑","スキル",2,null,null,3,null,null,"あなたのフィールドにある、〚ミニオン１体かロード１体〛を選んで、ターン終了時まで、「＋２／＋２」の修正を与える。",null,null,"C","「獣化で得たこの力…もう抑えられないから！」","源五郎"]
["エーテル・ペリドット","精霊/エーテル","緑","ミニオン",2,2,2,2,null,null,"「橄欖石の加護」\n《アンロック時》：あなたのタイムラインにある緑属性を持つカードを１枚選んでＷＴ－１する。",null,null,"C","「守ってる私に、あなたは気付いてくれてるのかしら」",6624]
["フェレスの姫『アネット』","フェレス/姫","緑","ロード",2,2,3,null,0,"効果ダメージ無効","「姫の声援」\n《常時》：あなたのフィールドの中央レーンにあるミニオンに、「＋２／＋２」の修正と「強襲」を与える。",null,null,"L","「可愛い私を守らせてあげる！嬉しいでしょ？」",6624]
["コロポックルの戦士","妖精/戦士","緑","ミニオン",3,2,1,4,null,"効果ダメージ無効","「蕗の葉隠れ」\n《常時》：このカードは、相手ユニットにブロックされず、またブロッカーにもなれず、アタックターゲットにもされない。（ただし、効果には選ばれる。）",null,null,"R","「ちっちゃいからって侮るなよ～」","ふう茶"]
["樹海狩人のフィオーネ","フェレス/狩人","緑","ミニオン",3,1,3,3,null,null,"「ブーメランスロー」\n《配置時／レーン移動時》：相手のフィールドにある、コストが３以下のミニオン１体を選んで２ダメージを与える。",null,null,"C","「ボクの特製ブーメラン、当たると痛いゾ！」","水本正"]
["樹海の妖精竜『クドリャフカ』","妖精/竜王","緑","ロード",4,3,5,null,0,null,"「樹海迷宮の主」\n《配置時》：あなたと相手のフィールドにある全ミニオンの総数が３以上の場合、あなたと相手のフィールドにある全ミニオンをそれぞれのウェイトゾーンⅠに置く。","「迷いの森」\n《常時》：相手のフィールドにあるコストが６以下のロードが発生させるバトルダメージは０になる。",null,"LR","「この森がマスターとの愛の巣、誰にも邪魔させないんだから」",6624]
["クローネの宮廷魔術師","クローネ/魔術師","緑","ミニオン",5,2,6,4,null,"跳躍","「クローネの跳躍魔法」\n《自ターン中》：あなたのフィールドにある、緑属性を持つコストが４以下の全ミニオンに、「＋１／＋１」の修正と「跳躍」を与える。",null,null,"R","「フッフッフー、私の魔法はふわふわなんだよ」",6624]
["幻獣キリン","精霊/獣","緑","ミニオン",6,5,6,2,null,null,"「吉祥獣」\n《配置時》：あなたのタイムラインにある緑属性を持つカードを２枚まで選んでＷＴ－１する。",null,null,"R",null,"水本正"]
["命の刈り取り","死神","黒/赤","アーツ",3,null,null,null,null,null,"以下の効果の中から１つを選んで得る。\n「相手のフィールドにある〚ミニオン１体かロード１体〛を選んで３ダメージを与える。この効果でブレイクしたミニオンは除外する。」\n「相手の〚スタンバイゾーンかタイムライン〛にあるミニオンカードを１枚選んで除外する。」",null,null,"R","「魂は巡るものだから…」","葉庭"]
["キョンシーガール","ゾンビ/鬼族","黒/赤","ミニオン",3,2,1,4,null,"再生","「キョンシーの呪い」\n《アンロック時》：相手のタイムラインにあるコストが２以下のミニオンカードを１枚選んで除外する。",null,null,"C","「がおがお」","形状"]
["カーバンクル","魔獣/精霊","黒/赤","ミニオン",3,2,3,2,null,"移動攻撃","「魔力の宝石」\n《配置時／レーン移動時》：あなたのウェイトゾーンⅡ～Ⅳにある〚黒属性か赤属性〛を持つカードを１枚選んでＷＴ－１しても良い。",null,null,"C",null,"しろいはくと"]
["女仙『サイカ』","仙人","黒/赤","ロード",6,6,4,null,1,"先制/跳躍/強襲","「五行相剋の仙術」\n《自ターン中任意１回》【xＭＰ】：相手のフィールドにある〚ミニオンとロード〛をx体まで選んで、ターン終了時まで「－０／－５」の修正を与える。（xは任意の自然数である）",null,null,"L",null,"形状"]
["魔術機械の研究","魔術師/蒸気機械","黒/白","スキル",1,null,null,4,null,null,"あなたはカードを１枚引く。\nその後、あなたの手札から、コストが３以下で、タイプ〚「魔術師」か「蒸気機械」〛を持つ〚スキルカードかミニオンカード〛を１枚選んであなたのウェイトゾーンⅣに置いても良い。",null,null,"C","「ふぅ…これならいけそうかな…？」","medilore"]
["フリーズ","魔術師","黒/白","アーツ",2,null,null,null,null,null,"相手の〚スタンバイゾーンかタイムライン〛にあるカードを２枚まで選ぶ。そうして選んだカードが、〚スタンバイゾーンとウェイトゾーンⅠ～Ⅱ〛にある場合はＷＴ＋２し、ウェイトゾーンⅢ～Ⅳにある場合は除外する。\nその後、あなたはカードを１枚引く。",null,null,"C",null,"葉庭"]
["時空乱流","魔女/魔術師","黒/白","アーツ",3,null,null,null,null,null,"相手のフィールドにあるコストが６以下のロード１体を選んでブレイクする。この効果でブレイクしたロードが、〚黒属性か白属性〛を持たない場合、相手のコアゾーンにあるコアを１個取り、相手のマスターの上に置く。",null,null,"R",null,"medilore"]
["時の大魔女『ハイデルガルド』","魔女","黒/白","ロード",4,3,4,null,0,"速攻","「スロウマジック」\n《アタック時》：相手の〚スタンバイゾーンかタイムライン〛にあるカードを１枚選んでＷＴ＋２する。","「時操りの魔女」\n《あなたが自ターン中、相手の〚スタンバイゾーンかタイムライン〛にある、１枚以上のカードを効果の対象とした時》：相手のフィールドにあるユニット１体を選んで１ダメージを与える。その後、あなたのマスターは１点のライフを得る。",null,"L","「時の支配。これが魔女最高の秘術よ」","水本正"]
["万物流転","陰陽師","黒/緑","スキル",1,null,null,3,null,null,"あなたのフィールドにあるミニオン１体を選んでブレイクする。そうした場合、あなたはカードを１枚引き、あなたのマスターは１点のライフを得る。",null,null,"C",null,"medilore"]
["陰陽少女","陰陽師","黒/緑","ミニオン",2,2,2,2,null,null,"「陰陽の符術」\n《アンロック時》：あなたの手札から、コストが３以下で〚黒属性か緑属性〛を持つスキルカードを１枚選んで、あなたのウェイトゾーンⅡに置いても良い。",null,null,"C","「符術のコツは、シュバっとして、バシー！だよ！」","形状"]
["蝕","神族","黒/緑","アーツ",6,null,null,null,null,null,"相手のフィールドにある〚全ミニオンとロード〛に、ターン終了時まで「－４／－４」の修正を与える。",null,null,"R",null,"medilore"]
["日輪の巫女『ヒミコ』","巫女/女王","黒/緑","ロード",6,3,7,null,1,null,"「神託の姫巫女」\n《配置時》：あなたはカードを３枚引き、あなたのマスターは３点のライフを得る。","「鬼神降ろし」\n《自ターン中任意１回》【２ＭＰ】：あなたのフィールドにあるミニオン１体を選んで、ターン終了時まで「＋Ｘ／＋Ｘ」の修正と「威圧X」を与える。Ｘは、あなたの手札の枚数に等しい。",null,"L","「出来れば、この力は使いたくはないのだけれど…」","TOKIAME"]
["聖剣の加護","聖剣","赤/白","アーツ",3,null,null,null,null,null,"相手のフィールドにある、コストが６以下の〚ロード１体かミニオン１体〛を選んで６ダメージを与える。その後、以下の効果の中から１つを選んで得る。\n「あなたのタイムラインにある、タイプ「剣術」を持つカードを１枚選んでＷＴ－１しても良い。」\n「このカードの効果でブレイクしたミニオンを相手の手札に戻しても良い。」",null,null,"R","「聖なる剣よ！今こそその力を示す時だ！」","葉庭"]
["流星突き","剣術","赤/白","スキル",4,null,null,3,null,null,"あなたのマスターは「ＡＴＫ３・先制・対ミニオン特効１・対ロード特効１」でアタックを行う。（※対ミニオン特効１：この効果で、相手ミニオンにダメージを与える場合、１点ダメージが増加する。）（※対ロード特効１：この効果で、相手ロードにダメージを与える場合、１点ダメージが増加する。）",null,null,"C","「お前が構える前に、俺なら１０回は突きを入れられるって事よ！」","葉庭"]
["武具精霊『アロンダイト』","精霊/聖剣","赤/白","ロード",4,3,4,null,0,"強襲","「守護の剣」\n《常時》：あなたの〚タイムラインとスタンバイゾーン〛にある全カードは、相手の効果の対象に選ばれない。","「聖なる力」\n《自ターン中、このカードがバトルによって相手のミニオンをブレイクした時》：ブレイクしたカードのコストが４以下の場合、そのカードを相手の手札に戻しても良い。",null,"L","「我が剣と愛をマスターに！」","茜屋"]
["ガーディアンナイト・アセリア","騎士","赤/白","ミニオン",5,2,7,3,null,null,"「シールドバッシュ」\n《配置時》：相手のフィールドにある、コストが３以下のミニオン１体を選び、相手のウェイトゾーンⅡに置く。そうした場合、あなたのマスターは１点のライフを得る。",null,null,"C",null,"蒲焼鰻"]
["妖精の角笛","妖精","赤/緑","スキル",1,null,null,3,null,null,"あなたのウェイトゾーンⅡ～Ⅳにある、コストが３以下のカードを１枚選んでＷＴ－１する。その後、あなたのフィールドにタイプ「妖精」を持つユニットがある場合、あなたはカードを１枚引き、あなたのマスターは１点のライフを得る。",null,null,"C","その音色に妖精たちは色めき立つ。","しろいはくと"]
["フェアリー突撃隊","妖精","赤/緑","ミニオン",1,2,1,2,null,null,"「陛下の御前よ！」\n《常時》：あなたのフィールドに、タイプ「妖精」を持つロードがある場合、このカードは「速攻」を得る。",null,null,"R","「陛下の御前よ！頭が高ーい！」",6624]
["シルキー・ロロナ","妖精","赤/緑","ミニオン",3,2,3,3,null,"効果ダメージ無効","「整理整頓が大事です」\n《配置時》：あなたのウェイトゾーンⅠ～Ⅲにあるカードを１枚選んで、ＷＴ＋１しても良い。そうした場合、あなたはカードを１枚引き、あなたのマスターは１点のライフを得る。",null,null,"C","「そこ！お掃除の邪魔ですわ！」","蒲焼鰻"]
["妖精弓の使い手『シャロン』","妖精/アーチャー","赤/緑","ロード",7,5,6,null,2,"速攻","「妖精弓の達人」\n《配置時／あなたのメインフェイズ開始時》：相手のフィールドにある〚ミニオンとロード〛を好きな枚数選んで、あなたの手札の枚数に等しいダメージを自由に割り振って与える。",null,null,"L","「森の小さき精霊達、力を借りるわね」","水本正"]
["休戦の合図","軍師","白/緑","スキル",2,null,null,4,null,null,"あなたのフィールドにあるコストが３以上のミニオン１体と、相手のフィールドにあるコストが５以下のミニオン１体を選ぶ。この効果で選んだあなたのミニオンはあなたのウェイトゾーンⅠに置き、選んだ相手のミニオンは、相手の手札に戻す。",null,null,"C",null,"medilore"]
["神威の一撃","神聖","白/緑","アーツ",3,null,null,null,null,null,"相手のフィールドにあるコストが５以下の〚ミニオン１体かロード１体〛を選び、ロードはブレイクし、ミニオンはウェイトゾーンⅣに置く。",null,null,"R","「神の力を畏れるがいい！」","源五郎"]
["ホーリーランサー","戦士","白/緑","ミニオン",3,2,3,2,null,"移動攻撃","「疾風の槍」\n《配置時／レーン移動時》：あなたのウェイトゾーンⅡ～Ⅳにある〚白属性か緑属性〛を持つカードを１枚選んでＷＴ－１しても良い。",null,null,"C",null,"水本正"]
["伏龍の軍師『コウメイ』","軍師","白/緑","ロード",5,3,5,null,1,null,"「神算」\n《配置時》：あなたのウェイトゾーンⅠにあるミニオンカードを、３枚まで選んであなたのフィールドに置く。","「鬼謀」\n《自ターン中任意１回》【xＭＰ】：あなたのフィールドにあるミニオンをx体まで選んで、ターン終了時まで「＋１／＋１」の修正と「速攻」を与える。（xは任意の自然数である）",null,"L","「その手は読めていました」","茜屋"]
["プルモーの毒銛撃ち","プルモー","青","ミニオン",1,2,1,3,null,null,"「くらげの一刺し」\n《ブレイク時》：相手のマスターに１ダメージを与える。",null,null,"C","「アタイにちょっかい出したら、刺しちゃうんだからネ！」",6624]
["シオマネキ","精霊","青","ミニオン",1,1,2,2,null,"右配置特性1/直進",null,null,null,"C","「わたしの右手がうなるんだよ」","形状"]
["フロストランス","魔術師","青","スキル",2,null,null,3,null,null,"相手のフィールドにあるミニオン１体を選んで３ダメージを与える。その後、相手のタイムラインにあるカードを１枚選んでリバース状態にする。",null,null,"C",null,"葉庭"]
["エーテル・サファイア","精霊/エーテル","青","ミニオン",2,2,2,2,null,null,"「碧玉の加護」\n《アンロック時》：あなたのタイムラインにある青属性を持つカードを１枚選んでＷＴ－１する。",null,null,"C","「幸運をお祈りします。マイマスター」",6624]
["イルカ乗り","ライダー/水魔","青","ミニオン",2,2,2,2,null,"跳躍/移動攻撃",null,null,null,"C","「飛ばすぜ相棒！」","大出リコ"]
["ルサルカの歌唄い","ルサルカ","青","ミニオン",2,2,2,3,null,null,"「セイレーンの歌」\n《配置時／レーン移動時》：あなたのウェイトゾーンⅡ～Ⅳにある青属性を持つカードを１枚選んでＷＴ－１する。",null,null,"C","「この歌、海を伝い皆に届きますように」",6624]
["スリープ","魔術師","青","スキル",3,null,null,3,null,null,"相手のフィールドにある、コストが３以下のミニオン１体を選び、相手のウェイトゾーンⅢにリバース状態で置く。",null,null,"C",null,"medilore"]
["マジカルスターマイン","精霊","青","ミニオン",3,1,2,3,null,null,"「星形爆弾」\n《配置時》：あなたのフィールドにある、このカードを除くミニオン１体を選んでブレイクしても良い。そうした場合、このカードはターン終了時まで「速攻」を得て、さらに相手のフィールドにある〚ミニオン１体かロード１体〛を選んで２ダメージを与える。",null,null,"R","「……どっかん☆」","ふう茶"]
["シャコ","精霊","青","ミニオン",4,4,4,2,null,null,null,null,null,"C","「疾く、鋭く、打つべし！」","形状"]
["ブルーレクイエム","魔術師/司祭","黒/青","アーツ",1,null,null,null,null,null,"相手のタイムラインにあるコストが３以下のカードを１枚選んで除外する。その後、あなたはカードを１枚引く。",null,null,"R",null,"medilore"]
["デスウィッチ","魔女/死霊術士","黒/青","ミニオン",2,2,1,2,null,null,"「魔女の置き土産」\n《ブレイク時》：このカードが置かれていたミニオンゾーンに「ゴーストトークン」を１体置く。",null,null,"R",null,6624]
["死者の怨恨","魔術師/死霊術師","黒/青","スキル",3,null,null,3,null,null,"相手のフィールドにあるユニット１体を選んで２ダメージを与える。\n【ソウルチャージ１】：相手のタイムラインにあるカードを２枚まで選んでリバース状態にする。\n（※【ソウルチャージ１】あなたのスタンバイゾーンとタイムラインからカードを１枚選んで除外しても良い。そうした場合、追加の効果を得る。）",null,null,"C",null,"葉庭"]
["ネクロマンサーガール","魔術師/死霊術師","黒/青","ミニオン",3,2,2,2,null,null,"「死者のお供」\n《配置時》：あなたのフィールドに「ゴーストトークン」を１体置く。",null,null,"C","「ほらほら！君も一緒に逝くよっ！」",6624]
["連鎖する呪い","魔術師/死霊術師","黒/青","アーツ",4,null,null,null,null,null,"相手のフィールドの中から、コストの合計が５以下になるように、〚ロードかミニオン〛を好きな枚数選んでブレイクする。この効果でブレイクしたミニオンをタイムラインに置くとき、リバース状態にする。",null,null,"R","死の鎖は、弱い命を絡め取る。","葉庭"]
["ゾンビマスター","魔術師/死霊術師","黒/青","ミニオン",4,4,3,3,null,null,"「死霊の置き土産」\n《ブレイク時》：このカードが置かれていたミニオンゾーンに「ゾンビトークン」を１体置く。",null,null,"R",null,"ふう茶"]
["死神の妹『リルシュ』","死神","黒/青","ロード",5,4,4,null,1,"先制/強襲","「死神の鎌」\n《配置時》：相手のフィールドにあるユニット１体を選び３ダメージを与える。","「死者の送り手」\n《自ターン中、このカードがバトルによって相手のユニットをブレイクした時》：あなたのフィールドに「ゴーストトークン」を１体置いても良い。",null,"L","「めんどい…。魂送るのちょうめんどい…」","大出リコ"]
["冥界姫『ヘカテ』","不死/姫","黒/青","ロード",7,6,6,null,2,null,"「冥界氾濫」\n《配置時》：あなたと相手のフィールドにある、このカードを除く〚全ミニオンと全ロード〛に、ターン終了時まで「－０／－５」の修正を与える。","「死者の主」\n《自ターン中任意１回》【１ＭＰ】：あなたのフィールドに「ゾンビトークン」を３体まで好きな数置く。その後、あなたのフィールドにある、「再生」か〚黒属性と青属性のダブルシンボル〛のいずれかを持つ全ミニオンに、ターン終了時まで「速攻」を与える。",null,"LR","「最後はみーんな、私の元に来るんだけどね♡」","形状"]
["シールドドール","ドール","白/青","ミニオン",1,1,2,2,null,"結界","「お守りドール」\n《配置時》：あなたのタイムラインにあるリバース状態のカードを１枚選んでオープン状態にしても良い。",null,null,"C","「そーんな攻撃じゃ、ワタシまで届かないと思うよー」","形状"]
["斬糸","糸使い","白/青","アーツ",3,null,null,null,null,null,"相手のフィールドにある、ＡＴＫが４以下の〚ミニオン１体かロード１体〛を選びブレイクする。この効果でブレイクしたミニオンは除外する。",null,null,"R","その刹那、視界のすべてが音もなくバラバラとなった──","medilore"]
["ドール召喚","ドール","白/青","スキル",2,null,null,2,null,null,"あなたのフィールドに「ドールトークン」を１体置く。",null,null,"C","「おいで、私の可愛いお人形さんたち…」","葉庭"]
["演目「ナッツクラッカー」","ドール/演目","白/青","スキル",2,null,null,4,null,null,"あなたのフィールドにある〚タイプ「ドール」かタイプ「ゴレム」〛を持つ全ユニットに、ターン終了時まで「＋１／＋１」の修正を与える。\n《メインフェイズ開始時》：このカードが、あなたのスタンバイゾーンにある場合、あなたのフィールドに「ドールトークン」を１体置く。そのトークンは、ターン終了時まで「強襲」を持つ。",null,null,"R",null,"葉庭"]
["キラードールショウ","ドール/糸使い","白/青","スキル",3,null,null,3,null,null,"相手のフィールドにあるミニオン１体を選んで３ダメージを与える。そうした場合、あなたのフィールドに「ドールトークン」を１体置いても良い。",null,null,"R",null,"medilore"]
["シザードール・メイベル","ドール","白/青","ミニオン",3,2,3,2,null,"移動攻撃","「素早いハサミ捌き」\n《配置時／レーン移動時》：あなたのウェイトゾーンⅡ～Ⅳにある〚白属性か青属性〛を持つカードを１枚選んでＷＴ－１しても良い。",null,null,"R","「ちょっきん…」","形状"]
["ニードルランサー","ドール","白/青","ミニオン",4,3,3,3,null,"速攻",null,null,null,"R","「アハハハハ、お注射から逃げまわっちゃ駄目だぞ～！」","形状"]
["カースドドール『キャリー』","ドール","白/青","ロード",5,4,5,null,1,"効果ダメージ無効","「人形小隊」\n《配置時》：あなたのフィールドに、「ドールトークン」を２体まで好きな数置く。","「人形小隊のリーダー」\n《自ターン中任意１回》【０ＭＰ】：あなたのフィールドにある、〚タイプ「ドール」かタイプ「ゴレム」〛を持つミニオン１体を選んで、ターン終了時まで「＋１／＋１」の修正と「速攻」を与える。",null,"L","「あのね、私と一緒に遊んでくれる…？」",6624]
["ノルンの次女『ヴェルザンディ』","神族","白/青","ロード",7,4,7,null,2,"速攻","「運命の導き手」\n《配置時／あなたのメインフェイズ開始時》：あなたの手札から、ＡＴＫが５以下のミニオンカードを１枚選んでアンロックしても良い。そうした場合、そのカードにターン終了時まで「速攻」を与える。","「時の女神の加護」\n《常時》：あなたは、あなたのドローフェイズ開始時にカードを１枚引く。",null,"LR","「運命の糸車を回しましょう」",6624]
["躍動する死者","魔術師","黒","スキル",1,null,null,2,null,null,"以下の効果の中から１つを選んで得る。\n・あなたの〚フィールドかタイムライン〛にある、リバース状態のカードを１枚選んでオープン状態にする。\n・あなたのフィールドにある「再生」を持つミニオン１体を選んで、ターン終了時まで「＋１／＋１」の修正と「速攻」を与える。",null,null,"C",null,"葉庭"]
["ヴァンパイアバット","悪魔","黒","ミニオン",1,1,2,3,null,null,"「ちょっと飲ませてね？」\n《自ターン中、このカードが相手のミニオンにダメージを与えた時》：相手のマスターに１ダメージを与える。",null,null,"C",null,"ふう茶"]
["バンシー","妖精/ゴースト","黒","ミニオン",2,2,2,3,null,null,"「バンシーの叫び声」\n《配置時》：相手の〚スタンバイゾーンかタイムライン〛にあるコストが２以下のスキルカードを１枚選んでＷＴ＋１する。",null,null,"C","「私の魂の叫びを聞けー！」","ふう茶"]
["ツキヨタケ","精霊","黒","ミニオン",3,3,2,2,null,null,"「月夜の道しるべ」\n《アンロック時》：あなたのタイムラインにあるカードを１枚選び、そのカードがリバース状態ならばオープン状態にする。その後、そのカードが黒属性を持っていた場合、さらにＷＴ－１しても良い。",null,null,"C",null,6624]
["マミーガール","ゾンビ","黒","ミニオン",3,1,2,4,null,"再生/対ミニオン特効1","「王家の呪い」\n《相手のマスターが効果によりライフを得た時》：その得たライフに等しいダメージを相手のマスターに与え、その効果の発生源がミニオンかロードであればブレイクする。",null,null,"C",null,"形状"]
["九命の猫又ミヤビ","妖怪/獣","黒","ミニオン",4,2,3,4,null,"再生/領域移動無効","「猫を殺せば七代祟る」\n《ブレイク時》：相手のマスターに１ダメージを与える。",null,null,"R",null,"ふう茶"]
["ナイトメア","悪魔","黒","ミニオン",5,4,4,2,null,"領域移動無効/移動攻撃","「悪夢の先触れ」\n《配置時/レーン移動時》：相手の〚スタンバイゾーンかタイムライン〛にあるカードを１枚選んでＷＴ＋１する。","「悪夢の蝕み」\n《常時》：相手が効果により、「手札からカードをアンロックするか、手札からカードを〚フィールドかタイムライン〛に置いた場合」、そのカードのコストに等しいダメージを相手のマスターに与える。",null,"R",null,"ふう茶"]
["テラーナイト『アレグリオ』","騎士/不死","黒","ロード",5,5,5,null,1,"威圧5","「恐怖のオーラ」\n《常時》：あなたのフィールドにある全ミニオンに「威圧３」を与える。",null,null,"L","「畏れよ」","形状"]
["オーガチャージ","鬼族/戦士","赤","スキル",1,null,null,3,null,null,"あなたのフィールドにある〚ミニオン１体かロード１体〛を選んで、ターン終了時まで「＋１／＋０」の修正を与える。そのカードがタイプ「鬼族」を持つ場合、さらにターン終了時まで「強襲」「直進」「衝撃１」を与える。",null,null,"C","「アタイの突撃、受けてみなよ！」","葉庭"]
["子鬼のヒミカ","鬼族","赤","ミニオン",1,2,1,2,null,"領域移動無効","「子鬼仲間の招集」\n《アンロック時》：あなたのコアゾーンの活性エリアにコアが１個もない場合、あなたはカードを１枚引いても良い。",null,null,"C",null,"大出リコ"]
["ファイアフィスト","魔術師/格闘","赤","スキル",2,null,null,3,null,null,"あなたのマスターは、「ＡＴＫ２・衝撃１」でアタックを行う。\nその後、あなたの手札からカードを１枚選んで裏向きに除外しても良い。そうした場合、あなたはカードを１枚引く。",null,null,"C","「熱い一撃、お見舞いするアルッ！」","里村響"]
["木の葉天狗","妖怪/天狗","赤","ミニオン",2,2,2,3,null,"移動攻撃","「天狗踊り」\n《配置時》：相手のフィールドにあるミニオン１体を選んで１ダメージを与える。",null,null,"C",null,"茜屋"]
["鬼族の忍","鬼族/忍者","赤","ミニオン",3,3,1,3,null,null,"「忍びの先導」\n《配置時》：あなたのフィールドにある、このカードを除くタイプ「鬼族」を持つユニット１体を選んで、ターン終了時まで「速攻」を与える。",null,null,"R","「鬼の忍びは音さえ残さぬ」","大出リコ"]
["ベニテングダケ","精霊","赤","ミニオン",3,3,2,2,null,null,"「美味しい劇薬」\n《アンロック時》：あなたのタイムラインにあるカードを１枚選び、そのカードがリバース状態ならばオープン状態にする。その後、そのカードが赤属性を持っていた場合、さらにＷＴ－１しても良い。",null,null,"C",null,6624]
["オーガメイジ","鬼族/魔術師","赤","ミニオン",5,5,4,3,null,null,"「フレアマジック」\n《配置時／あなたのメインフェイズ開始時》：同一レーンにある相手ミニオンに３ダメージを与える。",null,null,"R","「あちしの炎は、とってもあっついぞ！」","大出リコ"]
["火仙『ナタ』","仙人","赤","ロード",5,3,4,null,1,"結界","「火尖槍」\n《配置時》：相手のフィールドにある〚ロードと全ミニオン〛にＸダメージを与える。Ｘは相手のフィールドにある〚ロードとミニオンの総数〛に等しい。","「風火二輪」\n《常時》：相手のフィールドにロードがある場合、このカードは「速攻」「先制」「跳躍」「対ロード特効１」を得る。",null,"L",null,"水本正"]
["ホーリーウェイブ","司祭","白","スキル",2,null,null,3,null,null,"相手のミニオンゾーンにあるコストが２以下のカード１枚までと、相手のスタンバイゾーンにあるコストが２以下のカード１枚までを選んで、相手のウェイトゾーンⅡに置く。",null,null,"C","その眩い光は傷を癒やし、同時に精神までも研ぎ澄ましていった──","葉庭"]
["ヘヴィスウィング","剣術","白","スキル",2,null,null,3,null,null,"あなたのマスターは「ＡＴＫ２・衝撃１・対ミニオン特効１」でアタックを行う。",null,null,"C",null,"葉庭"]
["プラチナナイト・フラウ","騎士","白","ミニオン",2,2,2,3,null,"移動攻撃","「騎士の剣術」\n《自ターン中任意１回》【１ＭＰ】：このカードは、ターン終了時まで「＋１／＋０」の修正と「先制」を得る。",null,null,"C",null,"しろいはくと"]
["グレーターヒール","司祭/魔術師","白","アーツ",3,null,null,null,null,null,"あなたのマスターは２点のライフを得る。その後、あなたはカードを２枚引く。",null,null,"R",null,"葉庭"]
["ハナビラタケ","精霊","白","ミニオン",3,3,2,2,null,null,"「白花満開」\n《アンロック時》：あなたのタイムラインにあるカードを１枚選び、そのカードがリバース状態ならばオープン状態にする。その後、そのカードが白属性を持っていた場合、さらにＷＴ－１しても良い。",null,null,"C",null,6624]
["ヒーラーゴレム","ゴレム","白","ミニオン",4,2,3,3,null,"左配置限定","「癒やしの薬瓶」\n《配置時》：あなたのマスターは２点のライフを得る。","「救急隊出動」\n《自ターン中、あなたが、白属性を持つロードをフィールドに配置した時》：このカードが、あなたのウェイトゾーンⅠ～Ⅱにある場合、このカードをあなたのフィールドに配置しても良い。",null,"R","「さあマスター、痛いところはないかなー？」","形状"]
["プリエステス『ヴィーラ』","司祭","白","ロード",6,5,5,null,1,"強襲/効果ダメージ無効","「聖なる一撃」\n《配置時》：相手のフィールドにある、コストが６以下のロード１体を選んでブレイクする。","「癒やしの魔法」\n《あなたのメインフェイズ開始時》：あなたのマスターは２点のライフを得る。",null,"L",null,"しろいはくと"]
["クローネの隠密弓兵","クローネ/アーチャー","緑","ミニオン",1,1,2,2,null,null,"「うさみみ狙撃兵」\n《自ターン中任意》【疲労】：相手のマスターに１ダメージを与える。",null,null,"C",null,6624]
["神樹の巫女ユリアナ","クローネ/巫女","緑","ミニオン",2,1,3,2,null,null,"「樹海守りの巫女」\n《常時》：あなたのタイムラインにある全ミニオンカードは、相手の効果によって除外されない。",null,null,"R","「神樹様は、必ずあなたの祈りをお聞き届けになられます」",6624]
["クローネミンストレル","クローネ","緑","ミニオン",2,2,2,2,null,"移動攻撃","「クローネの伝承歌」\n《配置時／レーン移動時》：あなたのウェイトゾーンⅡ～Ⅳにある、タイプ「クローネ」を持つカードを１枚選びＷＴ－１しても良い。",null,null,"C","「やあ、リクエストはなにかな？英雄譚？それとも恋の歌？」",6624]
["ジャイアントキリング","戦士/フェレス","緑","アーツ",3,null,null,null,null,null,"あなたのフィールドにあるミニオン１体を選んで、ターン終了時まで「強襲」「先制」「対ミニオン特効５」「対ロード特効５」を与える。",null,null,"R","「ここは、ひゅーんといって、ドカーンですよねオルク師匠！」\n「いや、フィオーネよ。ここは、シュッといって、ズバッで行く」\n――ある師弟の作戦会議","葉庭"]
["ツチグリ","精霊","緑","ミニオン",3,3,2,2,null,null,"「マタンゴダンス」\n《アンロック時》：あなたのタイムラインにあるカードを１枚選び、そのカードがリバース状態ならばオープン状態にする。その後、そのカードが緑属性を持っていた場合、さらにＷＴ－１しても良い。",null,null,"C",null,6624]
["クローネの女王親衛隊","クローネ/戦士","緑","ミニオン",4,3,3,2,null,"先制","「親衛隊のお勤め」\n《自ターン中任意１回》【１ＭＰ】：このカードは、ターン終了時まで「＋１／＋０」の修正と「強襲」を得る。",null,null,"C","「我が耳にかけて、女王陛下に勝利を！」",6624]
["クローネの女王『アナトー』","クローネ/女王","緑","ロード",5,3,5,null,1,"対ロード特効1","「親衛隊の招集」\n《配置時》：あなたの手札から、コストが４以下の緑属性を持つミニオンカード１枚を選んでアンロックしても良い。そのミニオンカードが、タイプ「クローネ」を持つ場合、そのカードにターン終了時まで「強襲」を与える。","「女王陛下のご親征」\n《常時》：相手のフィールドにロードがある場合、このカードは「速攻」を得る。",null,"L",null,6624]
["スリッピィレーン","魔術師","青","スキル",1,null,null,3,null,null,"相手のフィールドのレーン１つを選んで、そのレーンにある相手ミニオン１体を、相手の空いている隣接レーンへ移動させる。そうした場合、そのミニオンに１ダメージを与える。この効果により、移動させたミニオンのレーン移動時効果は発生しない。",null,null,"C",null,"葉庭"]
["ルサルカの伝令","ルサルカ","青","ミニオン",1,1,1,2,null,null,"「海中の伝令人魚」\n《アンロック時》：あなたはカードを１枚引く。",null,null,"C","「敵襲だよ！みんな準備して！」","形状"]
["ルサルカの魔法戦士","ルサルカ/戦士","青","ミニオン",2,2,1,3,null,null,"「氷撃魔法」\n《配置時／レーン移動時》：相手のマスターに１ダメージを与える。",null,null,"C",null,6624]
["プルモーの突撃兵","プルモー/戦士","青","ミニオン",3,3,2,3,null,null,"「くらげチャージ！」\n《ブレイク時》：相手のマスターに１ダメージを与える。もし、このカードと同一レーンに相手ミニオンがない場合は代わりに２ダメージを与える。",null,null,"C","「いっくぞー！」",6624]
["氷刀剣士アオイ","侍","青","ミニオン",3,2,3,2,null,null,"「氷刀一閃」\n《アンロック時》：相手のタイムラインにある、コストが３以下のカード１枚を選んで、相手の手札に戻しても良い。",null,null,"R","「拙者、口べたゆえ、剣にて語らせて頂く」","TOKIAME"]
["ブルーシャークガール","精霊","青","ミニオン",3,3,3,2,null,null,null,null,null,"C","「お前の頭は、なかなか囓りがいがありそうだな…」","ふう茶"]
["氷結界の魔術師『イヴェール』","魔術師","青","ロード",3,0,3,null,0,"速攻/結界","「アイスピラー」\n《自ターン中任意》【疲労】：相手のタイムラインにあるカードを１枚選んでリバース状態にしても良い。その後、相手のフィールドにある〚ミニオン１体かロード１体〛を選んで３＋Ｘダメージを与える。Ｘは相手のタイムラインにあるリバース状態のカードの枚数に等しい。",null,null,"L",null,"ふう茶"]
["クローネの幻影使い","クローネ/魔術師","青","ミニオン",4,4,3,2,null,"領域移動無効","「幻影の身代わり」\n《ブレイク時》：あなたの手札が５枚以上ある場合、このカードのＷＴを－１してタイムラインに置く。",null,null,"R","「幻の剣で斬られた傷が、果たして幻かどうか、試す勇気はあるかな？」",6624]
["アイスバレット","魔術師","青","アーツ",5,null,null,null,null,null,"相手のフィールドにある、コストが６以下の〚ロード１体かミニオン１体〛を選んで６ダメージを与える。その後、相手の〚スタンバイゾーンかタイムライン〛のカードを１枚選んでＷＴ＋１し、リバース状態にする。",null,null,"C",null,"葉庭"]
["マンタ乗り","ライダー/水魔","青","ミニオン",5,3,4,3,null,"跳躍","「海の運び屋」\n《アンロック時》：あなたのウェイトゾーンⅠ～Ⅱにある青属性を持つミニオンカードを１枚選んで、あなたのフィールドに配置しても良い。","「マンタの大跳躍」\n《このカードが、タイムラインから直接フィールドに配置された時》：このカードは、ターン終了時まで「速攻」を得る。",null,"R","「さあ相棒、次の仕事だ」","形状"]
["プルモーの大戦士","プルモー","青","ミニオン",5,3,5,3,null,"対ミニオン特効1","「大戦士の技巧」\n《アンロック時》：このカードは、ターン終了時まで「強襲」を得る。",null,null,"R",null,6624]
["氷雪少女『ユキネ』","妖怪/雪女","青","ロード",6,5,6,null,1,"速攻/威圧3","「氷雪少女の吐息」\n《アタック時》：相手の〚スタンバイゾーンかタイムライン〛にあるカードを１枚選んでＷＴ＋１し、リバース状態にする。",null,null,"L","「私の事、暖めてくれる…？」","形状"]
["タイダルウェーブ","ルサルカ","青","アーツ",7,null,null,null,null,null,"あなたと相手の中央レーンにある、コストが７以下の〚全ミニオンと全ロード〛をブレイクする。この効果でブレイクしたミニオンをタイムラインに置く場合、ＷＴを＋１しリバース状態で置く。",null,null,"R","空まで覆うその大波は、すべてを飲み込み無へと帰した。","葉庭"]
["デスクラーケン","水魔","青","ミニオン",7,7,7,2,null,"領域移動無効",null,null,null,"R","「うごかざることイカのごとしー」",6624]
["四海竜姫『リヴァイアサン』","竜王/水魔","青","ロード",9,8,7,null,3,null,"「大あぎと」\n《配置時》：あなたと相手のフィールドにある、コストが７以下の〚全ミニオンと全ロード〛をブレイクし、この効果でブレイクしたユニット１体につき２ダメージを相手のマスターに与える。その後、相手のコアゾーンにあるコアを２個取り、相手のウェイトゾーンⅢに置く。","「海竜姫の威光」\n《常時》：相手のフィールドにある、コストが４以下の全ユニットは「速攻」を失う。",null,"LR","「妾こそ大海の支配者にして汝の死なり」",6624]
["スペルハック","魔術師","黒/赤","スキル",2,null,null,3,null,null,"相手の〚スタンバイゾーンかタイムライン〛にあるスキルカードを１枚選んでＷＴ＋２する。そのカードが〚タイプ「魔術師」かタイプ「魔女」〛を持つ場合、その後このカードを除外しても良い。そうした場合、この効果でＷＴ＋２した相手のカードを除外する。",null,null,"C","「ハッキング成功ー。じゃー、反撃を開始するよー。」","葉庭"]
["五行相剋","仙人","黒/赤","アーツ",2,null,null,null,null,null,"相手のフィールドにある、コストが６以下の〚ミニオン１体かロード１体〛を選んで、ターン終了時まで「－０／－５」の修正を与える。",null,null,"R",null,"medilore"]
["黒兎のギョクト","妖怪","黒/赤","ミニオン",4,3,1,3,null,"速攻/跳躍/効果ダメージ無効","「漆黒の恐るべきぴょんぴょん」\n《あなたが、〚黒属性か赤属性〛を持つ〚スキルカードかアーツカード〛をプレイした時》：このカードは、ターン終了時まで「先制」と「対ロード特効１」を得る。",null,null,"R","「ぬふー、たまー、とったるでー？」","ふう茶"]
["百鬼夜行の主『ユズリハ』","妖怪/姫","黒/赤","ロード",6,4,6,null,1,null,"「百鬼夜行の大行列」\n《配置時》【ｘＭＰ】：あなたのウェイトゾーンⅠ～Ⅲにある、タイプ〚「妖怪」か「精霊」か「鬼族」〛を持つミニオンカードから、合計コストが（４ｘ＋４）以下になるように好きな枚数選んであなたのフィールドに配置しても良い。","「百鬼夜行の呪い歌」\n《自ターン中、あなたがフィールドにミニオンを配置した時》：相手のマスターに１ダメージを与え、あなたのマスターは１点のライフを得る。",null,"LR","「さあ皆様～、ゆるりゆるりと参りましょうか～」","大出リコ"]
["サモンマジック","魔術師","黒/白","スキル",3,null,null,4,null,null,"あなたのウェイトゾーンⅠ～Ⅲにある、ミニオンカードを１枚選んであなたのフィールドに置く。そのカードが、タイプ〚「悪魔」か「精霊」か「天使」〛を持つ場合、このカードのＷＴを－１してタイムラインに置いても良い。",null,null,"R",null,"葉庭"]
["呪詛の刃","魔術師","黒/白","スキル",3,null,null,3,null,null,"相手のフィールドにあるユニット１体を選び、そのユニットがミニオンなら３ダメージ、それ以外なら２ダメージを与える。",null,null,"C",null,"葉庭"]
["封印術の魔道士","魔術師","黒/白","ミニオン",4,4,3,3,null,null,"「封印術」\n《配置時》：相手の〚スタンバイゾーンかタイムライン〛にあるカードを１枚選ぶ。そうして選んだカードが、〚スタンバイゾーンかウェイトゾーンⅠ～Ⅱ〛にある場合はＷＴ＋２し、ウェイトゾーンⅢ～Ⅳにある場合は除外する。",null,null,"R",null,"形状"]
["呪禍の大魔女『アナスタシア』","魔女/姫","黒/白","ロード",6,2,6,null,1,null,"「魔女の使い魔」\n《配置時》：あなたの手札から、コストが４以下の〚黒属性か白属性〛を持つミニオンカード１枚を選んで、あなたのフィールドに置いても良い。","「呪い撒きの魔女」\n《配置時／あなたのメインフェイズ開始時》：相手のフィールドにある全てのユニットの中から、好きな枚数を選んで合計３ダメージを割り振って与える。",null,"LR","「甘い呪いは、どうかしら？」","大出リコ"]
["祝祭の祝詞","巫女","黒/緑","スキル",1,null,null,3,null,null,"あなたのマスターは１点のライフを得る。その後、あなたのウェイトゾーンⅡ～Ⅳにある、〚黒属性か緑属性〛を持つカードを１枚選んでＷＴ－１しても良い。",null,null,"C",null,"葉庭"]
["管狐のオコン","精霊/獣","黒/緑","ミニオン",2,2,1,4,null,"速攻/直進","「狐の早足」\n《あなたが〚黒属性か緑属性〛を持つ〚スキルカードかアーツカード〛をプレイした時》：このカードが、あなたのウェイトゾーンⅠ～Ⅱにある場合、このカードをあなたのフィールドに配置しても良い。",null,null,"R","「お呼びですか！あるじ様っ！」","水本正"]
["厄神『ケイト』","神族","黒/緑","ロード",4,3,3,null,0,"速攻","「月はみの女神」\n《配置時》：相手のタイムラインにあるカードを１枚選んで除外する。","「蝕み」\n《配置時／あなたのメインフェイズ開始時》:相手のフィールドにある〚ミニオン１体かロード１体〛を選んで、ターン終了時まで「－２／－２」の修正を与える。",null,"L",null,"水本正"]
["月神『ツクヨミ』","神族","黒/緑","ロード",7,5,7,null,2,null,"「陰陽の反転」\n《配置時》：あなたの〚フィールドかタイムライン〛にあるリバース状態のカードを３枚まで選んで、オープン状態にする。その後、あなたのタイムラインにあるミニオンカードを１枚選んであなたのフィールドに置いても良い。","「月の導き」\n《常時》：あなたのフィールドの中央レーンにあるミニオンに、「＋２／＋２」の修正と「速攻」を与える。",null,"LR","「僕の光は、夜を彷徨う旅人たちの為にあるのだよ」","形状"]
["厳かなる埋葬","魔術師","黒/青","スキル",1,null,null,3,null,null,"以下の効果の中から１つを選んで得る。\n・相手のフィールドにあるリバース状態のカードを１枚選んで、相手のウェイトゾーンⅣに置く。\n・あなたのフィールドにあるミニオン１体を選んでブレイクする。そうした場合、あなたのマスターは１点のライフを得て、その後、あなたのウェイトゾーンⅡ～Ⅳにある〚黒属性か青属性〛を持つカードを１枚選んでＷＴ－１しても良い。",null,null,"C",null,"medilore"]
["魂魄の召喚","魔術師/死霊術師","黒/青","スキル",2,null,null,3,null,null,"あなたのフィールドに「ゴーストトークン」を１体置く。そうして置いたトークンに、ターン終了時まで「＋１／＋０」の修正を与える。",null,null,"R",null,"medilore"]
["ネクロプリンセス『マルドゥク』","死霊術師/姫","黒/青","ロード",2,3,3,null,null,"強襲","「姫の奴隷ちゃん」\n《常時》：あなたのフィールドの中央レーンにあるミニオンに、「＋２／＋０」の修正と「再生」を与える。",null,null,"L",null,"ふう茶"]
["付呪「ダークオーラ」","魔術師/死霊術師","黒/青","スキル",3,null,null,3,null,null,"あなたのフィールドにある、「再生」か〚黒属性と青属性のダブルシンボル〛を持つミニオン１体を選んで、ターン終了時まで「速攻」を与える。\n《自ターン中》：このカードが、あなたのスタンバイゾーンにある場合、あなたのフィールドにある、「再生」か〚黒属性と青属性のダブルシンボル〛を持つ全ミニオンは「＋１／＋０」の修正を得る。",null,null,"R","「ミ・ナ・ギ・ル！…チ・カ・ラ・ガ!!」","葉庭"]
["骨の嵐","魔術師/死霊術師","黒/青","スキル",3,null,null,3,null,null,"相手のフィールドにある、〚全ミニオンとロード〛に１ダメージを与える。\n【ソウルチャージ２】：１ダメージではなく、２ダメージを与える。\n（※【ソウルチャージ２】あなたのスタンバイゾーンとタイムラインからカードを２枚選んで除外しても良い。そうした場合、追加の効果を得る。）",null,null,"R",null,"葉庭"]
["シャドウゴースト","ゴースト","黒/青","ミニオン",4,2,3,3,null,null,"「ゴーストフレンド」\n《配置時》：あなたのフィールドに「ゴーストトークン」を１体置く。","「幽霊部隊」\n《常時》：あなたのフィールドにある、タイプ「ゴースト」を持つ全ミニオンに「＋１／＋０」の修正を与える。",null,"R",null,"ふう茶"]
["ヴァンパイアクイーン『ミモザ』","吸血鬼/女王","黒/青","ロード",6,6,5,null,1,"速攻","「女王の眷属」\n《配置時》【ｘＭＰ】：あなたのウェイトゾーンⅠ～ⅢにあるミニオンカードをＸ＋１枚まで選んで、あなたのフィールドに配置しても良い。こうして配置したミニオンは、ターン終了時まで「強襲」を持ち、あなたのメインフェイズ終了時にブレイクする。","「吸精公主」\n《自ターン中、あなたのフィールドにあるミニオンがブレイクした時》：あなたのマスターは１点のライフを得る。",null,"LR","「あなたの命、私にプレゼントしてくれる？」","形状"]
["刀匠クニナガ","鍛冶師","赤/白","ミニオン",1,1,2,3,null,null,"「名刀鍛錬」\n《配置時/レーン移動時》：あなたのウェイトゾーンⅡ～Ⅳにある、タイプ〚「剣術」か「名刀」〛を持つカードを１枚選びＷＴ－１しても良い。",null,null,"C","「刀達の声を聞かせてしんぜようぞ」","里村響"]
["居合い斬り","剣術","赤/白","スキル",3,null,null,3,null,null,"あなたのマスターは「ＡＴＫ２・貫通２・対ミニオン特効２・対ロード特効２」でアタックする。",null,null,"R","一瞬見えた刀身が再び鞘に収まると、あたりは静寂につつまれた──","葉庭"]
["武具精霊『グラム』","魔剣/精霊","赤/白","ロード",3,3,3,null,0,"強襲","「戦神の加護」\n《常時》：相手のフィールドにある全ユニットは「速攻」を失い、また効果により「速攻」を得る事も出来ない。","「再生の短剣」\n《自ターン中任意１回》【２ＭＰ】：あなたのマスターは２点のライフを得る。","「龍殺し」\n《自ターン中任意１回》【２ＭＰ】：相手のフィールドにある、ＨＰが７以上のロード１体を選んで７ダメージを与える。","L","「あなたに、この私が使いこなせるかしら？」","形状"]
["聖杯の守護騎士『パーシヴァル』","騎士","赤/白","ロード",6,6,4,null,1,"速攻","「守護の聖槍」\n《配置時》：相手の〚フィールドとタイムライン〛にあるコストが４以下のカードから、合計コストが６以下になるように好きな枚数を選び相手の手札に戻す。",null,null,"LR","「ううっ、そんなに睨まないでほしいです～」","水本正"]
["ウィル・オ・ウィスプの召喚","妖精","赤/緑","アーツ",2,null,null,null,null,null,"相手のフィールドにある全ミニオンに２ダメージを与える。その後、あなたのフィールドにタイプ「妖精」を持つカードがある場合、あなたはカードを１枚引いても良い。",null,null,"C",null,"medilore"]
["プーカ","妖精","赤/緑","ミニオン",4,3,4,2,null,"領域移動無効","「いたずらプーカ」\n《常時》：相手がフィールドにＣＣが０以下のロードを配置する場合、そのロードのＣＣを１として扱う。",null,null,"R","「さあ、プーカちゃんが来ました！覚悟するです！」","大出リコ"]
["炎の乙女『エキドナ』","神族","赤/緑","ロード",6,5,5,null,1,"強襲","「炎翼のマナ」\n《配置時》：あなたの手札から、コストが３以下の〚赤属性か緑属性〛を持つカードを１枚選んでアンロックしても良い。","「恋多き乙女」\n《自ターン中》：あなたのカードの効果において、あなたの手札にある〚ミニオンカードとスキルカード〛を、あなたのウェイトゾーンⅡにあるのと同じように扱っても良い。",null,"LR","「わたしってば、あなたに恋をしちゃったかも♡」","形状"]
["聖銀の妖精騎士『ヒルデブラン』","騎士/妖精","赤/緑","ロード",8,6,7,null,2,null,"「妖精騎士の先駆け」\n《自ターン中、このカードがバトルの後に生き残った時》：あなたのウェイトゾーンⅠ～Ⅲにあるミニオンカードを１枚選んであなたのフィールドに置いても良い。そうして置かれたミニオンに、ターン終了時まで「速攻」を与える。","「フェアリーデュエル」\n《自ターン中任意１回》【０ＭＰ】：相手のフィールドにある〚ロード１体かミニオン１体〛を選んで、このカードとバトルを行う。",null,"L",null,6624]
["一騎打ち","将軍","白/緑","アーツ",1,null,null,null,null,null,"あなたと相手のフィールドから、それぞれミニオンを１体ずつ選び、そうして選んだミニオン同士でバトルを行う。（この効果によりバトルを行う場合、ミニオンを疲労させる必要はなく、行動不能状態であってもバトル可能である。）",null,null,"C",null,"里村響"]
["フェレスのクノイチ・ミツバ","フェレス/忍者","白/緑","ミニオン",3,2,3,2,null,null,"「森の密偵」\n《あなたが、〚白属性か緑属性〛を持つ〚スキルカードかアーツカード〛をプレイした時》：このカードはターン終了時まで「速攻」を得る。",null,null,"R",null,"ふう茶"]
["双角王『イスカンダル』","神族/将軍","白/緑","ロード",7,5,6,null,2,"速攻","「英雄王の叡智」\n《配置時》：あなたのウェイトゾーンⅠ～Ⅱにあるスキルカードを２枚まで選んで任意の順番でプレイしても良い。","「英雄王の指揮」\n《あなたが〚スキルカードかアーツカード〛をプレイした時》：あなたのフィールドにあるミニオン１体を選び、ターン終了時まで「速攻」を与える。",null,"LR","「この大地を平らげるまで、我が疾走は決して止まらぬ！」","大出リコ"]
["関聖帝君『カンウ』","神族/将軍","白/緑","ロード",8,7,7,null,2,"速攻","「一斉反攻の大号令」\n《常時》：このカードは「貫通Ｘ」を得る。Ｘは、あなたと相手のフィールドにあるユニットカードの総数に等しい（ユニットにはマスターカードも含まれる）。",null,null,"L",null,"茜屋"]
["演目「眠れる森の美女」","ドール/演目","白/青","スキル",2,null,null,3,null,null,"相手のタイムラインにあるカードを１枚選んでＷＴ＋１し、リバース状態にする。\n《あなたのエンドフェイズ開始時》：相手のフィールドにある、ＡＴＫが２以下のミニオンを１体選んで、相手のウェイトゾーンⅡに置く。",null,null,"R",null,"葉庭"]
["ダンスマカブル","ドール/糸使い","白/青","スキル",3,null,null,3,null,null,"相手のフィールドにある〚全ミニオンとロード〛にＸダメージを与える。Ｘは、あなたのフィールドにある、タイプ「ドール」を持つユニットの総数に等しい。",null,null,"R",null,"medilore"]
["ドールワルツ","ドール","白/青","スキル",3,null,null,3,null,null,"あなたのフィールドにある、〚タイプ「ドール」かタイプ「ゴレム」〛を持つユニット１体を選んで、ターン終了時まで「＋１／＋１」の修正と「速攻」を与える。",null,null,"R",null,"葉庭"]
["ハンマーゴレム","ゴレム","白/青","ミニオン",4,3,3,3,null,"強襲/直進/対ミニオン特効1","「はんまーチャンス！」\n《自ターン中、このカードが相手ユニットをブレイクした時》：あなたのタイムラインにある、このカードを除く〚白属性か青属性〛を持つカードを１枚選んでＷＴ－１しても良い。",null,null,"R","「わがはんまーに砕けぬ敵はなし、だよ！」","形状"]
["ビッグベアの強襲","ドール","白/青","スキル",5,null,null,4,null,null,"あなたのフィールドに「ビッグベアトークン」を１体置く。こうして置いたトークンに、ターン終了時まで「強襲」と「直進」を与える。",null,null,"C","「お願い！あるていぉー!!」","葉庭"]
["神織の蜘蛛『アラクネー』","神族","白/青","ロード",5,5,5,null,1,null,"「封じの糸」\n《配置時》：相手のフィールドにコアが置かれていないロードがある場合、相手のコアゾーンからコアを１個取り、そのロードの上に置く。","「捕獲の網」\n《配置時》：相手のフィールドにあるコストが４以下の〚ミニオン１体かロード１体〛を選び、ロードはブレイクし、ミニオンはウェイトゾーンⅣに置きリバース状態にする。",null,"LR","「うふふ、美味しそうなの捕まえちゃった♪」","大出リコ"]
["鋼糸使い『ミサリサ』","糸使い","白/青","ロード",6,5,6,null,1,"速攻","「神速の糸使い」\n《配置時》：相手のフィールドにある、ＡＴＫが４以下の〚ミニオン１体かロード１体〛を選んでブレイクする。この効果でミニオンをブレイクした場合、そのミニオンは除外する。",null,null,"L","「分解するのに力も時間も必要ないわ。一瞬でバラバラよ。」","大出リコ"]